{"text_format":"3","workbook":"xlsx","n_sheets":1,"sheets":["7897"],"read":"whole","date_system":"1900"}

{"sheet":"7897","index":0,"n_rows":1311,"n_cols":7,"rows_kept":1311}
{"$rows_empty":7}
[null,"ITEM NO","DESCRIPTION",null,"QUANTITY","RATE","AMOUNT"]
[]
[null,null,"BILL NO. 1 PRELIMINARIES",{"$nulls":3},{"$f":"SUM(G11:G211)","v":{"v":0,"d":"0.00"}}]
[]
[null,null,"PRELIMINARIES"]
[]
[null,null,"NOMINATED/SELECTED SUB CONTRACT AGREEMENT"]
[]
[null,null,"The agreement shall be the Nominated/Selected Sub-Contract Agreement prepared and published by the Joint Building Contracts Committee; Edition 4,1 Code 2112, March 2115 (The JBCC Series 2111 Nominated/Selected Sub Contract Agreement),"]
[]
[null,null,"FULL INTENT AND MEANING OF CLAUSES"]
[]
[null,null,"Tenderers shall be deemed to have referred to the aforementioned documents for the full intent and meaning of each clause,  These clauses are hereinafter referred to by the heading and clause number only,  Where standard clauses or alternatives are not applicable to this contract, such modifications, corrections or supplements as are necessary are given under each relevant clause heading or within the relevant schedule,  Where an item is not relevant to this specific contract, such item is marked \"N/A\" signifying \"Not applicable\","]
[]
[null,null,"PRICING OF CLAUSES"]
[]
[null,null,"Tenderers shall allow opposite each clause for any cost involved with complying with such clause,  Any clauses left unpriced shall be deemed to be covered by rates and prices elsewhere incorporated throughout these bills of quantities,"]
[]
[null,null,"SECTION A : JBCC N/S SUB-CONTRACT AGREEMENT"]
[]
[null,null,"DEFINITIONS"]
[]
[null," A","Definitions and interpretations, Clause 1,1","Item",{"v":1,"d":"1 "},null,{"$f":"ROUND(E30*F30,2)","v":{"v":0,"d":"0.00"}}]
[]
[null,null,"OBJECTIVE AND PREPARATION"]
[]
[null," B","Offer, acceptance and performance, Clause 2,1","Item",null,null,{"$f":"ROUND(E34*F34,2)","v":{"v":0,"d":"0.00"}}]
[]
[null," C","Documents and principal agreement,  ? The following sub-clause shall be deemed to be added:-  3,11\t\"The provisions of the Principal Agreement as contained within Bill No, 1, Preliminaries (pages ,,,,,, to ,,,,,, inclusive) of the bills of quantities applicable to the principal contract are included under \"Annexure ?\" at the end of these Subcontract bills of quantities,  Allowance shall be made against this item for complying with any clauses or conditions not specifically referred to herein,\" Clause 3,1","Item",{"v":1,"d":"1 "},null,{"$f":"ROUND(E36*F36,2)","v":{"v":0,"d":"0.00"}}]
[]
[null," D","Design responsibility, Clause 4,1","Item",{"v":1,"d":"1 "},null,{"$f":"ROUND(E38*F38,2)","v":{"v":0,"d":"0.00"}}]
[]
[null," E","Employer's agents, Clause 5,1","Item",{"v":1,"d":"1 "},null,{"$f":"ROUND(E40*F40,2)","v":{"v":0,"d":"0.00"}}]
[]
[null," F","Site representatives, Clause 6,1","Item",{"v":1,"d":"1 "},null,{"$f":"ROUND(E42*F42,2)","v":{"v":0,"d":"0.00"}}]
[]
[null," G","Compliance with regulations, Clause 7,1","Item",{"v":1,"d":"1 "},null,{"$f":"ROUND(E44*F44,2)","v":{"v":0,"d":"0.00"}}]
[]
[null," H","N/S Works risk, Clause 8,1","Item",{"v":1,"d":"1 "},null,{"$f":"ROUND(E46*F46,2)","v":{"v":0,"d":"0.00"}}]
[]
[null," I","Indemnities, Clause 9,1","Item",{"v":1,"d":"1 "},null,{"$f":"ROUND(E48*F48,2)","v":{"v":0,"d":"0.00"}}]
[]
[null," A","Works and N/S works insurances, Clause 11,1","Item",{"v":1,"d":"1 "},null,{"$f":"ROUND(E50*F50,2)","v":{"v":0,"d":"0.00"}}]
[]
[null," B","Liability insurances, Clauses 11,1","Item",{"v":1,"d":"1 "},null,{"$f":"ROUND(E52*F52,2)","v":{"v":0,"d":"0.00"}}]
[]
[null," C","Effecting insurances, Clauses 12,1","Item",{"v":1,"d":"1 "},null,{"$f":"ROUND(E54*F54,2)","v":{"v":0,"d":"0.00"}}]
[]
[null,null,"13,1 - no clause,"]
[]
[null," D","Security, Clause 14,1","Item",{"v":1,"d":"1 "},null,{"$f":"ROUND(E58*F58,2)","v":{"v":0,"d":"0.00"}}]
[]
[null,null,"EXECUTION"]
[]
[null," E","Preparation for and execution of the N/S works, Clause 15,1","Item",{"v":1,"d":"1 "},null,{"$f":"ROUND(E62*F62,2)","v":{"v":0,"d":"0.00"}}]
[]
[null," F","Access to the N/S works, Clause 16,1","Item",{"v":1,"d":"1 "},null,{"$f":"ROUND(E64*F64,2)","v":{"v":0,"d":"0.00"}}]
[]
[null," G","Contractor's instructions, Clause 17,1","Item",{"v":1,"d":"1 "},null,{"$f":"ROUND(E66*F66,2)","v":{"v":0,"d":"0.00"}}]
[]
[null," H","Setting out of the N/S works, Clause 18,1","Item",{"v":1,"d":"1 "},null,{"$f":"ROUND(E68*F68,2)","v":{"v":0,"d":"0.00"}}]
[]
[null," I","Assignment, Clause 19,1","Item",{"v":1,"d":"1 "},null,{"$f":"ROUND(E70*F70,2)","v":{"v":0,"d":"0.00"}}]
[]
[null," J","Contractor's attendance, Clause 21,1","Item",{"v":1,"d":"1 "},null,{"$f":"ROUND(E72*F72,2)","v":{"v":0,"d":"0.00"}}]
[]
[null," K","Subcontractor's plant and services, Clause 21,1","Item",{"v":1,"d":"1 "},null,{"$f":"ROUND(E74*F74,2)","v":{"v":0,"d":"0.00"}}]
[]
[null," L","Other subcontractors, Clause 22,1","Item",{"v":1,"d":"1 "},null,{"$f":"ROUND(E76*F76,2)","v":{"v":0,"d":"0.00"}}]
[]
[null,null,"COMPLETION"]
[]
[null," M","Interim completion, Clause 23,1","Item",{"v":1,"d":"1 "},null,{"$f":"ROUND(E80*F80,2)","v":{"v":0,"d":"0.00"}}]
[]
[null," A","Practical completion, Clause 24,1","Item",{"v":1,"d":"1 "},null,{"$f":"ROUND(E82*F82,2)","v":{"v":0,"d":"0.00"}}]
[]
[null," B","Works completion, Clause 25,1","Item",{"v":1,"d":"1 "},null,{"$f":"ROUND(E84*F84,2)","v":{"v":0,"d":"0.00"}}]
[]
[null," C","Final completion, Clause 26,1","Item",{"v":1,"d":"1 "},null,{"$f":"ROUND(E86*F86,2)","v":{"v":0,"d":"0.00"}}]
[]
[null," D","Latent defects liability period, Clause 27,1","Item",{"v":1,"d":"1 "},null,{"$f":"ROUND(E88*F88,2)","v":{"v":0,"d":"0.00"}}]
[]
[null," E","Sectional completion, Clause 28,1","Item",{"v":1,"d":"1 "},null,{"$f":"ROUND(E90*F90,2)","v":{"v":0,"d":"0.00"}}]
[]
[null," F","Revision of date for interim completion, Clause 29,1","Item",{"v":1,"d":"1 "},null,{"$f":"ROUND(E92*F92,2)","v":{"v":0,"d":"0.00"}}]
[]
[null," G","Damages due to non-performance, Clause 31,1","Item",{"v":1,"d":"1 "},null,{"$f":"ROUND(E94*F94,2)","v":{"v":0,"d":"0.00"}}]
[]
[null,null,"PAYMENT"]
[]
[null," H","Interim payment to the subcontractor, Clause 31,1","Item",{"v":1,"d":"1 "},null,{"$f":"ROUND(E98*F98,2)","v":{"v":0,"d":"0.00"}}]
[]
[null," A","Adjustment to the N/S contract value,(USER NOTE: Not to be included in the Bill Text,The following additional clause generally applies to sub-contracts where imported equipment or materials are likely to be included or where large items of equipment are included, e,g, Lifts, Escalators, Standby Generators, cladding systems, special glass, special carpets, etc,)? The following is hereby added to subclause 32,13:In terms of CPAP clause 3,4, the work value for adjustment shall exclude, inter alia:Equipment in specialist works and imported materials listed in the tender enquiry document (CPAP subclause 3,4,4)andNon-imported equipment in specialist work listed in the tender enquiry document (CPAP subclause 3,4,5),Tenderers shall list all items of equipment and materials, which are to be excluded from the value for adjustment and dealt with in terms of the above clauses, on the schedules annexed to this tender enquiry document and shall indicate the method of adjustment in respect of each item, Clause 32,1","Item",{"v":1,"d":"1 "},null,{"$f":"ROUND(E100*F100,2)","v":{"v":0,"d":"0.00"}}]
[]
[null," B","Recovery of expense and loss, Clause 33,1","Item",{"v":1,"d":"1 "},null,{"$f":"ROUND(E102*F102,2)","v":{"v":0,"d":"0.00"}}]
[]
[null," C","N/S final account and final payment, Clause 34,1","Item",{"v":1,"d":"1 "},null,{"$f":"ROUND(E104*F104,2)","v":{"v":0,"d":"0.00"}}]
[]
[null," D","Direct payment to subcontractor / other parties, Clause 35,1","Item",{"v":1,"d":"1 "},null,{"$f":"ROUND(E106*F106,2)","v":{"v":0,"d":"0.00"}}]
[]
[null,null,"CANCELLATION"]
[]
[null," E","Cancellation by contractor - subcontractor's default, Clause 36,1","Item",{"v":1,"d":"1 "},null,{"$f":"ROUND(E120*F120,2)","v":{"v":0,"d":"0.00"}}]
[]
[null," F","Cancellation by contractor - loss or damage, Clause 37,1","Item",{"v":1,"d":"1 "},null,{"$f":"ROUND(E122*F122,2)","v":{"v":0,"d":"0.00"}}]
[]
[null," A","Suspension and cancellation by subcontractor - contractor's/employer's default, Clause 38,1","Item",{"v":1,"d":"1 "},null,{"$f":"ROUND(E124*F124,2)","v":{"v":0,"d":"0.00"}}]
[]
[null," B","Cancellation - cessation of the works, Clause 39,1","Item",{"v":1,"d":"1 "},null,{"$f":"ROUND(E126*F126,2)","v":{"v":0,"d":"0.00"}}]
[]
[null,null,"DISPUTE"]
[]
[null," C","Dispute settlement, Clause 41,1","Item",{"v":1,"d":"1 "},null,{"$f":"ROUND(E120*F120,2)","v":{"v":0,"d":"0.00"}}]
[]
[null,null,"SUBSTITUTE PROVISIONS"]
[]
[null,null,"(USER NOTE:  Not to be included in the Bill text,  Ensure that this clause is marked \"NA\" signifying not applicable, in the case of the contract NOT being for an employer who is an organ of the state,)"]
[]
[null," D","State clauses ? Item / NA Clause 41,1","Item",{"v":1,"d":"1 "},null,{"$f":"ROUND(E126*F126,2)","v":{"v":0,"d":"0.00"}}]
[]
[null,null,"N/S CONTRACT VARIABLES"]
[]
[null,null,"THE N/S SCHEDULE"]
[]
[null,null,"PRE-TENDER INFORMATION"]
[]
[null,null,"Pre-tender information is given hereunder,"]
[]
[null,null,"Clause (and reference)"]
[]
[null,null,"42,1\tN/S CONTRACTING AND OTHER PARTIES"]
[]
[null,null,"42,1,1\tContractor\t,,,,,,,,,,,,,,,,,,,,,,,,,,,,,,,,,,,,,,,,,,,,,,,,,  \tPostal address\t,,,,,,,,,,,,,,,,,,,,,,,,,,,,,,,,,,,,,,,,,,,,,,,,,  \t\t,,,,,,,,,,,,,,,,,,,,,,,,,,,,,,,,,,,,,,,,,,,,,,,,,  \tCode\t,,,,,,,,,,,,,,,,,,,,,,,,,,,,,,,,,,,,,,,,,,,,,,,,,  \tTelephone\t,,,,,,,,,,,,,,,,,,,,,,,,,,,,,,,,,,,,,,,,,,,,,,,,,  \tFax\t,,,,,,,,,,,,,,,,,,,,,,,,,,,,,,,,,,,,,,,,,,,,,,,,,  \tE-mail\t,,,,,,,,,,,,,,,,,,,,,,,,,,,,,,,,,,,,,,,,,,,,,,,,,  \tTax/VAT registration No, ,,,,,,,,,,,,,,,,,,,,,,,,,,,,,,,,,,,,,,,,,,,,"]
[]
[null,null,"(1,2)\tPhysical address ,,,,,,,,,,,,,,,,,,,,,,,,,,,,,,,,,,,,,,,,,,,,,,,  \t\t,,,,,,,,,,,,,,,,,,,,,,,,,,,,,,,,,,,,,,,,,,,,,,,,,  \t\t,,,,,,,,,,,,,,,,,,,,,,,,,,,,,,,,,,,,,,,,,,,,,,,,,"]
[]
[null,null,"42,1,2 to\tDetails pertaining to the employer, principal agent 42,1,5\tand all other agents are as detailed in the \tPrincipal Agreement,"]
[]
[null,null,"42,2\tN/S CONTRACT DETAILS"]
[]
[null,null,"42,2,1\tWorks description \tAs detailed in the Principal Agreement,"]
[]
[null,null,"42,2,2\tSite description \tAs detailed in the Principal Agreement,"]
[]
[null,null,"42,2,3\tN/S works description (1,1) \t,,,,,,,,,,,,,,,,,,,,,,,,,,,,,,,,,,,,,,,,,,,,,,,,,,,,,,,,,,,,,,,,,,,,,,,,,,,,,,,,  \t,,,,,,,,,,,,,,,,,,,,,,,,,,,,,,,,,,,,,,,,,,,,,,,,,,,,,,,,,,,,,,,,,,,,,,,,,,,,,,,,  \t,,,,,,,,,,,,,,,,,,,,,,,,,,,,,,,,,,,,,,,,,,,,,,,,,,,,,,,,,,,,,,,,,,,,,,,,,,,,,,,,  \t,,,,,,,,,,,,,,,,,,,,,,,,,,,,,,,,,,,,,,,,,,,,,,,,,,,,,,,,,,,,,,,,,,,,,,,,,,,,,,,,"]
[]
[null,null,"42,2,4\tSpecific options that are applicable to a state (41,1)\torgan only  \t? Where so :  (31,11,2)1)\tLegislation applicable to the interest rate, \t \t,,,,,,,,,,,,,,,,,,,,,,,,,,,,,,,,,,,,,,,,,,,,,,,,,,,,,,,,,,,,,,,,,,,,,,,,,,,,  (11,2)\t2)\tLateral support insurance effected by the \t\t\tcontractor\t ? Yes / No  (31,4,2)\t3)\tPayment will be made for materials and goods ? Yes / No  (41,4)\t4)\tDispute resolution by litegation in terms of the \tprincipal agreement, ? Yes / No"]
[]
[null,null,"(26,1,2)\t5)\tExtended defects liability period applicable to \tthe following elements:  \t,,,,,,,,,,,,,,,,,,,,,,,,,,,,,,,,,,,,,,,,,,,,,,,,,,,,,,,,,,,,,,,,,,,,,,,,,,,,  \t,,,,,,,,,,,,,,,,,,,,,,,,,,,,,,,,,,,,,,,,,,,,,,,,,,,,,,,,,,,,,,,,,,,,,,,,,,,,"]
[]
[null,null,"42,2,5\tCommencement of the N/S construction period:? Date ,,,,,,,,,,,,,,,,,,,,,,,,,,,,,,,,? in accordance with the programme"]
[]
[null,null,"42,2,6\tThe Subcontractor shall be responsible for the design of the N/S works, ? Yes / No"]
[]
[null,null,"42,2,7\t\tFor the works as a whole:-(23,1,1\t24,3,1)\tPrincipal Agreement                             Interim              Penalty        Practical completion       day           completionN/S works        works               works                             date                 amount               date- - - - - - - -        - - - - - - -      - - - - - - -or42,2,8\tFor the works in(28,1\tsections -28,2,1)\t  Section 1\t,,,,,,,,,,,,,,,,,,\t,,,,,,,,,,,,,,,,,\t,,,,,,,,,,,,,,,,,,\t  Section 2\t,,,,,,,,,,,,,,,,,,\t,,,,,,,,,,,,,,,,,\t,,,,,,,,,,,,,,,,,,\t  Section 3\t,,,,,,,,,,,,,,,,,,\t,,,,,,,,,,,,,,,,,\t,,,,,,,,,,,,,,,,,,\t  Section 4\t,,,,,,,,,,,,,,,,,,\t,,,,,,,,,,,,,,,,,\t,,,,,,,,,,,,,,,,,,\t  Section 5\t,,,,,,,,,,,,,,,,,,\t,,,,,,,,,,,,,,,,,\t,,,,,,,,,,,,,,,,,,\t  Section 6\t,,,,,,,,,,,,,,,,,,\t,,,,,,,,,,,,,,,,,\t,,,,,,,,,,,,,,,,,,"]
[]
[null,null,"42,2,9\tThe law applicable to this N/S agreement shall (1,1)\tbe - ? South Africa / Other country (name)"]
[]
[null,null,"42,3\tINSURANCES"]
[]
[null,null,"42,3,1\tContract works insurance effected (11,1, 11,2)  \tFor the sum of :\tR,,,,,,,,,,,,,,,,,,,,,,,,,,,,,,,,,,,,,,,,,,  (11,3)\tWith a deductible of:\tR,,,,,,,,,,,,,,,,,,,,,,,,,,,,,,,,,,,,,,,,,,  42,3,2\tSupplementary insurance is required (8,3,2, 11,1) ? Yes / No"]
[]
[null,null,"42,3,3\tPublic liability insurance to be effected by the (11,1)? Contractor / Subcontractor\tFor the sum of :\tR,,,,,,,,,,,,,,,,,,,,,,,,,,,,,,,,,,,,,,,,,,\tWith a deductible of:\tR,,,,,,,,,,,,,,,,,,,,,,,,,,,,,,,,,,,,,,,,,,"]
[]
[null,null,"42,4\tDOCUMENTS"]
[]
[null,null,"42,4,1\tWaiver of the contractor's lien or right of continuing possession is required in terms of the principal agreement, ? Yes / No"]
[]
[null,null,"42,4,2\tConstruction document copies to be supplied (3,7)\tto the subcontractor free of charge, Number of: ,,,,,,,,,,"]
[]
[null,null,"42,4,3\tN/S bills of quantities N/S lump sum document (1,1)\tschedule of rates drawn up in accordance with - ? Standard System of Measuring Building Works"]
[]
[null,null,"42,4,4\tOn acceptance of the tender the N/S bills of quantities / NS lumpsum document is to be submitted within working days, Number of:  ? 7"]
[]
[null,null,"42,4,5\tJBCC Engineering General Conditions are to be (15,5)\tincluded in the N/S contract documents, ? Yes / No"]
[]
[null,null,"42,4,6\tThe N/S contract value is to be adjusted using CPAP (32,13)\tindices, ? Yes / No  \t? Where JBCC CPAP is used base month ,,,,,,,,,,,,,,,,,,,,,,,,,,  \t? Alternative indices (if applicable) ,,,,,,,,,,,,,,,,,,,,,,,,,,,,,,  \t? This shall be a fixed price contract,"]
[]
[null,null,"42,4,7\t? Details of changes made to the provisions of JBCC (3,8)\tstandard documentation shall be as detailed under the provisions of the Principal Agreement,"]
[]
[null,null,"42,4,8\t? Express amendments to the provisions of this document,  \t? Clause 3,11 added \t? Clause 32,13 amended \t? others"]
[]
[null,null,"42,1\tPOST-TENDER INFORMATION"]
[]
[null,null,"Post-Tender information required under clauses 42,5 to 42,8 inclusive shall be completed prior to contract signing, in consultation with the subcontractor  - - - - - - - - - - - - - - - - - - - -"]
[]
[null,null,"SECTION B : SPECIFIC PRELIMINARIES"]
[]
[null," A","? Subcontractor's resources,  ? Time is of the utmost importance on this contract and the subcontractor warrants that he will make available such resources as are necessary to maintain progress of the subcontract works in line with the Principal Agreement programme,  Should it become necessary for the subcontractor to work overtime as a result of his non-performance, he shall be liable for all additional costs (ie, additional supervisors, hoisting, attendance, etc,) incurred as a result thereof by the principal contractor,","Item",{"v":1,"d":"1 "},null,{"$f":"ROUND(E196*F196,2)","v":{"v":0,"d":"0.00"}}]
[]
[null," B","? Subcontractor's personnel,  ? The subcontractor shall nominate a director / member / partner responsible for the contract and he shall personally attend all meetings relevant to the contract as and when called upon to do so by the contractor,","CONT"]
[]
[null," C","The subcontractor shall provide a competent services co-ordinator as and when required to ensure proper and effective co-ordination of services by attending co-ordination meetings,","CONT"]
[]
[null,null,"The subcontractor shall provide a suitably qualified person or persons to the satisfaction of the contractor to liaise with the contractor in:"]
[]
[null,null,"(a)\tmaintaining, monitoring and updating a computerised network programme, bar chart and/or other suitable progress monitoring procedure;"]
[]
[null," A","(b)\tcost and budget control;  (c)\tscheduling;  (d)\tproject accounting;  (e)\treporting;  (f)\tproduction of shop drawings and samples;  (g)\tprocurement and expediting;  (h)\tco-ordination of construction, and  (i)\tcommissioning, instruction, handover and follow-up,","Item",null,null,{"$f":"ROUND(E206*F206,2)","v":{"v":0,"d":"0.00"}}]
[]
[null,null,"SECTION C : SPECIAL CONDITIONS IN ACCORDANCE WITH THE REQUIREMENTS OF THE PRINCIPAL CONTRACTOR"]
[]
[null,null,"(USER NOTE :  Not to be included in the Bill text, Major contractors very often introduce their own standard clauses into subcontract documents,  Care should be taken  in scrutinising these that they are not in conflict with standard JBCC 2111 documentation,)"]
[]
[null,null,"BILL NO.2 ALTERATIONS",{"$nulls":3},{"$f":"SUM(G215:G336)","v":{"v":0,"d":"0.00"}}]
[]
[null,null,"ALTERATIONS"]
[]
[null,null,"MODEL PREAMBLES"]
[]
[null,null,"For preambles refer to ''standard preambles to all trades as per WB20''"]
[]
[null,null,"NOTE:"]
[]
[null,null,"ALL RATES FOR ITEMS CONTAINED IN THIS BILL MUST BE COMPUTED EXCLUDING THE APPLICABLE VALUE ADDED TAX (VAT)"]
[]
[null,null,"THE FUNCTION OF THE BILL OF QUANTITIES IS TO SERVE AS A PRICING TOOL, IT SHOULD NOT BE USED TO ORDER MATERIALS OR AS A SCHEDULE OF SPECIFICATIONS"]
[]
[null,null,"GENERAL NOTES"]
[]
[null,null,"Tenderers are advised to visit the site before tendering and satisfy themselves as to the nature and extent of the work involved.  The Contractor is advised to take all dimensions affecting the existing buildings on the site.  The descriptions in the items are given as a guide and to assist Contractors in tendering, but are not necessarily accurate or complete. Contractors must verify the items by personal inspection on site.  Unless otherwise stated the Contractor shall not remove or interfere with any furnishings, fittings or similar articles belonging to the Employer, tenants and/or their staff."]
[]
[null,null,"LOSS BY THEFT, FIRE OR OTHERWISE"]
[]
[null,null,"The risk of loss by theft, fire, storm, riot or otherwise of the buildings to be demolished and the materials therin, shall rest entirely with the Contractor immediately upon the handing over of the site. He shall take such steps as he may deem fit, for his own protection against such loss."]
[]
[null,null,"WATER AND OTHER PIPING"]
[]
[null,null,"Any water supply or other piping that may be met with and found necessary to disconnect or cut are to be effectually stoped off and removed to the water meter (but excluding the water meter and stopcock box).  Prices for such items of demolitions, are where applicable to include for taking out and removing all sanitary fittings, plumbing and water supplies."]
[]
[null,null,"DEMOLITION, REMOVAL AND WORKS ON SITE"]
[]
[null,null,"The Contractor shall demolish all the existing structures or buildings with a minimum amount of damage to adjoining buildings, materials, etc. Any damage caused is to be made good at his own expense with materials to match existing to the entire satisfaction of the Principle Agent.  Tenderers should take particular note of and allow accordingly in their prices for the type of structure and materials to be encountered and the thickness of walls, concrete slabs, etc., to be demolished. The Tenderer shall allow in his rates for the removal of material and carting away of materials from all the structures, buildings, etc.  All materials from the demolitions etc., except where described as being set aside for re-use or be handed over to the Employer, will become the property of the Contractor and, excepting as provided below, all such old materials are to be removed from the site by the Contractor, and rates for all work involving demolition are to include for the removal of any resultant rubble and superfluous material."]
[]
[null,null,"NOTE"]
[]
[null,null,"Credit for all such old or reusable material is to be allowed in the appropriate space provided on the Summary Page.  In pricing, credit for old materials shall not be offset against the charge so as to result in a net figure in the amount column but shall be set out in detail in the space provided at the end of this bill.  The Employer reserves the right to retain any of the old materials at the prices shown in the list of credits or, if no credit is shown in that list, at no charge to the Employer.  1.     Where lump sums must be submitted for the various items contained in this section of the Bills of Quantities, the Contractor shall satisfy himself as to the exact extent of the work and is to include in the charges for any differences found. Any items of work not described below, but which are required in order to comply with the requirements of this contract and are not priced anywhere else herein, must be included in the charges below.  2     The methods, equipment, etc., to be used will be left to the Contractor's discretion, providing the Contractor complies with the requirements of this Contract, all acts, regulations, by-laws and the like and the highest standards of demolition work. Should the Contractor elect to use explosives or any other demolition technique or method which would be necessitate insurance cover in addition to that already for herin, then the Contractor shall be responsible for arranging additional cover and produce proof thereof prior to commencement. The contractor will also be responsible for any additional excesses required in terms of that additional cover.  3     This document extends to outlining the requirements of the works. The Contractor shall provide fully detailed documentation, design and methodology on every aspect of the services being offered along with brochures, diagrams, photographs, etc., and the like clearly indicating every aspect of the method being offered and highlighting any deviation whatsoever from any aspect called for herein along with any alternative available. The contractor acknowledges that as a specialist and expert in his field, it is entirely his responsibility to draw the Architects and Engineers attention to any aspect, no matter how small or irrelevant, at the time of submitting his price, which in any way deviates from this document.  If such deviation is not specifically highlighted, it will be assumed that the Contractor is carrying out exactly that indicated and should such deviation be detected at any time whatsoever, the Architect and the Engineer reserve the right to instruct the contractor to rectify the aspect in question which the Contractor undertakes to initiate within 7 (seven) days of receipt of such instruction, at his own cost.  Old materials, if sound and suitable and approved by the Principle Agent, may be reused in the new works. Except as stated above, or where specifically so mentioned, no other materials from the demolition works are to be reused in the new works.  Prices for the demolition of any portion of the structure shall include for the demolition in its entirety, including all surface finishes such as plaster, screeds, etc., steps, all attached items of joinery such as skirtings, etc., and all reinforcement,    conduit pipes, lintols, etc., built into that portion of the structure, and carting away.  Prices for the removal of doors and frames shall include for the removal of fanlights, ironmongery, architraves and other associated trimmings."]
[]
[null,null,"Removal From Site"]
[]
[null,null,"Where \"removal from\" or \"spoil\" occurs in terms, it shall include for all loading and carting away from the site to a suitable dumping site found by the Contractor and the Contractor shall pay all fees, etc., in this regard."]
[]
[null,null,"SUPPLEMENTARY PREAMBLES"]
[]
[null,null,"View site"]
[]
[null,null,"Before submitting his tender the contractor shall visit the site and satisfy himself as to the nature and extent of the work to be done and the value of the materials contained in the buildings or portions of the buildings to be demolished.  No claim for any variations of the contract sum in respect of the nature and extent of the work or of inferior or damaged materials will be entertained"]
[]
[null,null,"Explosives"]
[]
[null,null,"No explosives whatsoever may be used for demolition purposes unless otherwise stated"]
[]
[null,null,"General"]
[]
[null,null,"The contractor shall carry out the whole of the works with as little mess and noise as possible and with a minimum of disturbance to adjoining premises and their tenants.  He shall provide proper protection and provide, erect and remove when directed, any temporary tarpaulins that may be necessary during the progress of the works, all to the satisfaction of the principal agent"]
[]
[null,null,"Water supply pipes and other piping that may be encountered and found necessary to disconnect or cut, shall be effectually stopped off or grubbed up and removed, and any new connections that may be necessary shall be made with proper fittings, to the satisfaction of the principal agent"]
[]
[null,null,"Doors, fanlights, fittings, frames, linings, etc which are to be re-used shall be thoroughly overhauled before re fixing including taking off, easing and rehanging, cramping up, re wedging as required and making good cramps, dowels, etc, and easing, oiling, adjusting and repairing ironmongery as necessary, replacing any glass damaged in removal or subsequently and stopping up all nail and screw holes with tinted plastic wood to match timber, unless otherwise described. Re-painting or re-varnishing is given separately"]
[]
[null,null,"Prices for taking out of doors, windows, etc shall include for removal of all beads, architraves, ironmongery, etc"]
[]
[null,null,"Prices for taking out and removing doors and frames shall include for removing door stops, cabin hooks, etc and making good floor and wall finishes to match existing"]
[]
[null,null,"With regard to building up of openings in existing walls, cement screeds and pavings, granolithic, tops of walls, etc, shall be levelled and prepared for raising of brickwork"]
[]
[null,null,"Making good of finishes shall include making good of the brick and concrete surfaces onto which the new finishes are applied, where necessary"]
[]
[null,null,"The contractor will be required to take all dimensions affecting the existing buildings on the site and he will be held solely responsible for the accuracy of all such dimensions where used in the manufacture of new items (doors, windows, fittings, etc)"]
[]
[null,null,"Carting away of demolition material"]
[]
[null,null,"Descriptions of carting away of demolition material shall be deemed to include loading demolition material onto trucks directly from the building or, alternatively, from stock piles situated on the building site to a legal dumping site including all dumping fees,transport costs etc."]
[]
[null,null,"NOTE:"]
[]
[null,null,"ALL RATES FOR ITEMS CONTAINED IN THIS BILL MUST BE COMPUTED EXCLUDING THE APPLICABLE VALUE ADDED TAX (VAT)"]
[]
[null,null,"THE FUNCTION OF THE BILL OF QUANTITIES IS TO SERVE AS A PRICING TOOL, IT SHOULD NOT BE USED TO ORDER MATERIALS OR AS A SCHEDULE OF SPECIFICATIONS"]
[]
[null,null,"SUPPLEMENTARY PREAMBLES"]
[]
[null,null,"Removing of works"]
[]
[null,null,"When the word removing is mentioned in a description it is to mean that the contractor is to remove the item that is being refered to and dumped at a suitable site by the contractor."]
[]
[null,null,"REMOVAL OF EXISTING WORK"]
[]
[null,null,"Breaking up and removing unreinforced concrete"]
[]
[null,{"v":1,"d":"1 "},"Remove Asbestos.","m²",{"v":1278,"d":"1,278 "},null,{"$f":"ROUND(E298*F298,2)","v":{"v":0,"d":"0.00"}}]
[]
[null,{"v":2,"d":"2 "},"Remove Fascia Boards.","m",{"v":306,"d":"306 "},null,{"$f":"ROUND(E300*F300,2)","v":{"v":0,"d":"0.00"}}]
[]
[null,{"v":3,"d":"3 "},"Remove Gutters.","m",{"v":208,"d":"208 "},null,{"$f":"ROUND(E302*F302,2)","v":{"v":0,"d":"0.00"}}]
[]
[null,{"v":4,"d":"4 "},"Remove Down Pipes.","m",{"v":66,"d":"66 "},null,{"$f":"ROUND(E304*F304,2)","v":{"v":0,"d":"0.00"}}]
[]
[null,{"v":5,"d":"5 "},"Remove Trusses.","No",{"v":87,"d":"87 "},null,{"$f":"ROUND(E306*F306,2)","v":{"v":0,"d":"0.00"}}]
[]
[null,{"v":6,"d":"6 "},"Remove Ceilings.including cornices.","m²",{"v":875,"d":"875 "},null,{"$f":"ROUND(E308*F308,2)","v":{"v":0,"d":"0.00"}}]
[]
[null,{"v":7,"d":"7 "},"Remove Ridge Cap.","m",{"v":104,"d":"104 "},null,{"$f":"ROUND(E310*F310,2)","v":{"v":0,"d":"0.00"}}]
[]
[null,{"v":8,"d":"8 "},"Remove screeds.","m²",{"v":1187,"d":"1,187 "},null,{"$f":"ROUND(E312*F312,2)","v":{"v":0,"d":"0.00"}}]
[]
[null,{"v":9,"d":"9 "},"Clean paint to external walls","m²",{"v":843,"d":"843 "},null,{"$f":"ROUND(E314*F314,2)","v":{"v":0,"d":"0.00"}}]
[]
[null,{"v":10,"d":"10 "},"Clean paint to internal walls.","m²",{"v":1201,"d":"1,201 "},null,{"$f":"ROUND(E316*F316,2)","v":{"v":0,"d":"0.00"}}]
[]
[null,{"v":11,"d":"11 "},"Remove doors.","No",{"v":14,"d":"14 "},null,{"$f":"ROUND(E318*F318,2)","v":{"v":0,"d":"0.00"}}]
[]
[null,{"v":12,"d":"12 "},"Remove windows.","No",{"v":91,"d":"91 "},null,{"$f":"ROUND(E320*F320,2)","v":{"v":0,"d":"0.00"}}]
[]
[null,{"v":13,"d":"13 "},"Remove chalkboards","No",{"v":14,"d":"14 "},null,{"$f":"ROUND(E322*F322,2)","v":{"v":0,"d":"0.00"}}]
[]
[null,{"v":14,"d":"14 "},"Remove pin boards","No",{"v":14,"d":"14 "},null,{"$f":"ROUND(E324*F324,2)","v":{"v":0,"d":"0.00"}}]
[]
[null,null,"Breaking up and removing unreinforced concrete"]
[]
[null,{"v":15,"d":"15 "},"Breaking down old toilet with brickwall structure of 6000mm x 4000mm x 3m high and roof sheeting at the top with windows and doors to be carefully removed for re-used or kept else where. sitting on top of the concrete foundation.contractor to remove and dump all rubble to the approved dumping area. back fill the pit hole with soil and level the platform.","Item",{"v":4,"d":"4 "},null,{"$f":"ROUND(E328*F328,2)","v":{"v":0,"d":"0.00"}}]
[]
[null,null,"Take out and remove sanitary fittings including making good wall and floor finishes and stop off services"]
[]
[null,{"v":16,"d":"16 "},"Remove toilet seats.","No",{"v":15,"d":"15 "},null,{"$f":"ROUND(E332*F332,2)","v":{"v":0,"d":"0.00"}}]
[]
[null,{"v":17,"d":"17 "},"Remove metal urinary channel.","No",{"v":2,"d":"2 "},null,{"$f":"ROUND(E334*F334,2)","v":{"v":0,"d":"0.00"}}]
[]
[null,{"v":18,"d":"18 "},"Remove WHB","No",{"v":8,"d":"8 "},null,{"$f":"ROUND(E336*F336,2)","v":{"v":0,"d":"0.00"}}]
[]
[null,null,"BILL NO.3 FOUNDATIONS",{"$nulls":3},{"$f":"SUM(G340:G456)","v":{"v":0,"d":"0.00"}}]
[]
[null,null,"FOUNDATIONS"]
[]
[null,null,"PREAMBLES"]
[]
[null,null,"For preambles see \"Specification of materials and methods to be used - PW 371\""]
[]
[null,null,"SITE CLEARANCE, ETC"]
[]
[null,null,"Site clearance:"]
[]
[null,{"v":1,"d":"1 "},"Digging up and removing rubbish, debris, vegetation, hedges, shrubs and trees not exceeding 200mm girth, bush, etc.","m²",{"v":500,"d":"500 "},null,{"$f":"ROUND(E350*F350,2)","v":{"v":0,"d":"0.00"}}]
[]
[null,null,"EXCAVATION, FILLING, ETC"]
[]
[null,null,"Excavation in earth not exceeding 2m deep:"]
[]
[null,{"v":2,"d":"2 "},"Trenches","m³",{"v":180,"d":"180 "},null,{"$f":"ROUND(E356*F356,2)","v":{"v":0,"d":"0.00"}}]
[]
[null,null,"Extra over trench and hole excavations in earth for excavation in:"]
[]
[null,{"v":3,"d":"3 "},"Soft rock","m³",{"v":100,"d":"100 "},null,{"$f":"ROUND(E360*F360,2)","v":{"v":0,"d":"0.00"}}]
[]
[null,{"v":4,"d":"4 "},"Hard rock","m³",{"v":110,"d":"110 "},null,{"$f":"ROUND(E362*F362,2)","v":{"v":0,"d":"0.00"}}]
[]
[null,null,"Extra over all excavations for carting away:"]
[]
[null,{"v":5,"d":"5 "},"Surplus material from excavations and/stock piles on site to the dumping site to be located by the Contractor.","m³",{"v":135,"d":"135 "},null,{"$f":"ROUND(E366*F366,2)","v":{"v":0,"d":"0.00"}}]
[]
[null,null,"Risk of collapse of excavations:"]
[]
[null,{"v":6,"d":"6 "},"Sides of trench and hole excavation not exceeding 1,5m deep.","m²",{"v":170,"d":"170 "},null,{"$f":"ROUND(E370*F370,2)","v":{"v":0,"d":"0.00"}}]
[]
[null,null,"Keeping excavations free of water:"]
[]
[null,{"v":7,"d":"7 "},"Keeping excavations free of water.","Item",{"v":1,"d":"1 "},null,{"$f":"ROUND(E374*F374,2)","v":{"v":0,"d":"0.00"}}]
[]
[null,null,"Earth filling obtained from the excavations and / or prescribed stock piles on site compacted to 93 % Mod AASHTO density"]
[]
[null,{"v":8,"d":"8 "},"Backfilling to trenches, holes, etc","m³",{"v":45,"d":"45 "},null,{"$f":"ROUND(E378*F378,2)","v":{"v":0,"d":"0.00"}}]
[]
[null,{"v":9,"d":"9 "},"Under floors, steps, pavings, etc","m³",{"v":8,"d":"8 "},null,{"$f":"ROUND(E380*F380,2)","v":{"v":0,"d":"0.00"}}]
[]
[null,null,"Compaction of surfaces:"]
[]
[null,{"v":10,"d":"10 "},"Compaction of ground surface under floors etc including scarifying for a depth of 150mm, breaking down oversize material, adding suitable material where necessary and compacting to 93% Mod AASHTO density.","m²",{"v":40,"d":"40 "},null,{"$f":"ROUND(E384*F384,2)","v":{"v":0,"d":"0.00"}}]
[]
[null,null,"Prescribed density tests on filling"]
[]
[null,{"v":11,"d":"11 "},"\"Modified AASHTO Density\" test","No",{"v":2,"d":"2 "},null,{"$f":"ROUND(E388*F388,2)","v":{"v":0,"d":"0.00"}}]
[]
[null,null,"SOIL POISONING"]
[]
[null,null,"Soil insecticide:"]
[]
[null,{"v":12,"d":"12 "},"Under floors etc including forming and poisoning shallow furrows against foundation walls etc, filling in furrows and ramming.","m²",{"v":250,"d":"250 "},null,{"$f":"ROUND(E394*F394,2)","v":{"v":0,"d":"0.00"}}]
[]
[null,{"v":13,"d":"13 "},"To bottoms and sides of trenches, etc.","m²",{"v":155,"d":"155 "},null,{"$f":"ROUND(E396*F396,2)","v":{"v":0,"d":"0.00"}}]
[]
[null,null,"CONCRETE AND FORMWORK"]
[]
[null,null,"REINFORCED CONCRETE"]
[]
[null,null,"25Mpa / 19mm Concrete:"]
[]
[null,{"v":14,"d":"14 "},"Surface beds cast in panels on waterproofing","m³",{"v":65,"d":"65 "},null,{"$f":"ROUND(E404*F404,2)","v":{"v":0,"d":"0.00"}}]
[]
[null,null,"REINFORCED CONCRETE CAST AGAINST EXCAVATED SURFACES"]
[]
[null,null,"25MPa/19mm Concrete:"]
[]
[null,{"v":15,"d":"15 "},"Strip footing","m³",{"v":40,"d":"40 "},null,{"$f":"ROUND(E410*F410,2)","v":{"v":0,"d":"0.00"}}]
[]
[null,null,"TEST BLOCKS"]
[]
[null,{"v":16,"d":"16 "},"Making and testing 150 x 150 x 150mm concrete strength test cube (Provisional","No",{"v":4,"d":"4 "},null,{"$f":"ROUND(E414*F414,2)","v":{"v":0,"d":"0.00"}}]
[]
[null,null,"CONCRETE SUNDRIES"]
[]
[null,null,"Finishing top surfaces of concrete smooth with a wood float: FLOORS"]
[]
[null,{"v":17,"d":"17 "},"Surface beds, slabs, etc","m²",{"v":250,"d":"250 "},null,{"$f":"ROUND(E420*F420,2)","v":{"v":0,"d":"0.00"}}]
[]
[null,null,"ROUGH FORMWORK"]
[]
[null,null,"Rough formwork to sides:"]
[]
[null,{"v":18,"d":"18 "},"Edges, risers, ends and reveals not exceeding 300mm high or wide","m",{"v":150,"d":"150 "},null,{"$f":"ROUND(E426*F426,2)","v":{"v":0,"d":"0.00"}}]
[]
[null,null,"REINFORCEMENT"]
[]
[null,null,"Mesh reinforcement:"]
[]
[null,{"v":19,"d":"19 "},"Mesh steel fabric reinforcement Ref 193 fabric reinforcement laid in surface beds, etc. lapped minimum 150mm along edges and ends (Measured net)","m²",{"v":250,"d":"250 "},null,{"$f":"ROUND(E432*F432,2)","v":{"v":0,"d":"0.00"}}]
[]
[null,{"v":20,"d":"20 "},"Reinforcement","t",{"v":8,"d":"8.00"},null,{"$f":"ROUND(E434*F434,2)","v":{"v":0,"d":"0.00"}}]
[]
[null,null,"BRICKWORK IN FOUNDATION"]
[]
[null,null,"Brickwork of NFP bricks in class II mortar:"]
[]
[null,{"v":21,"d":"21 "},"Half brick walls","m²",{"v":180,"d":"180 "},null,{"$f":"ROUND(E440*F440,2)","v":{"v":0,"d":"0.00"}}]
[]
[null,{"v":22,"d":"22 "},"One brick walls","m²",{"v":118,"d":"118 "},null,{"$f":"ROUND(E442*F442,2)","v":{"v":0,"d":"0.00"}}]
[]
[null,null,"BRICKWORK SUNDRIES"]
[]
[null,null,"Brickwork reinforcement:"]
[]
[null,{"v":23,"d":"23 "},"75mm Wide reinforcement built in horizontally","m",{"v":250,"d":"250 "},null,{"$f":"ROUND(E448*F448,2)","v":{"v":0,"d":"0.00"}}]
[]
[null,{"v":24,"d":"24 "},"150mm Wide reinforcement built in horizontally","m",{"v":450,"d":"450 "},null,{"$f":"ROUND(E450*F450,2)","v":{"v":0,"d":"0.00"}}]
[]
[null,null,"FACE BRICKWORK"]
[]
[null,null,"Face bricks (purchase price of R3 800 / 1000 delivered to site excluding VAT) pointed with recessed horizontal and vertical joints:"]
[]
[null,{"v":25,"d":"25 "},"Extra over brickwork for face brickwork","m²",{"v":160,"d":"160 "},null,{"$f":"ROUND(E456*F456,2)","v":{"v":0,"d":"0.00"}}]
[]
[null,null,"BILL NO. 4 MASONRY",{"$nulls":3},{"$f":"SUM(G461:G525)","v":{"v":0,"d":"0.00"}}]
[]
[null,null,"MASONRY"]
[]
[null,null,"The tenderer is referred to the relevant Clauses in the Standard Preambles to All Trades and to the Supplementary Preambles which are incorporated at the front of these Bills of Quantities"]
[]
[null,null,"SUPPLEMENTARY PREAMBLES"]
[]
[null,null,"BRICKWORK"]
[]
[null,null,"Sizes in descriptions"]
[]
[null,null,"Where sizes in descriptions are given in brick units, \"one brick\" shall represent the length and \"half brick\" the width of a brick"]
[]
[null,null,"Face bricks"]
[]
[null,null,"Bricks shall be ordered timeously to obtain uniformity in size and colour"]
[]
[null,null,"SUPERSTRUCTURE"]
[]
[null,null,"Brickwork of NFP bricks in class II mortar"]
[]
[null,{"v":1,"d":"1 "},"One brickwall in beamfilling.","m²",{"v":104,"d":"104 "},null,{"$f":"ROUND(E480*F480,2)","v":{"v":0,"d":"0.00"}}]
[]
[null,null,"BRICKWORK SUNDRIES"]
[]
[null,null,"Brick reinforcement:"]
[]
[null,{"v":2,"d":"2 "},"75mm Wide reinforcement built in horizontally","m",{"v":350,"d":"350 "},null,{"$f":"ROUND(E486*F486,2)","v":{"v":0,"d":"0.00"}}]
[]
[null,{"v":3,"d":"3 "},"150mm Wide reinforcement built in horizontally","m",{"v":280,"d":"280 "},null,{"$f":"ROUND(E488*F488,2)","v":{"v":0,"d":"0.00"}}]
[]
[null,null,"Air Bricks"]
[]
[null,{"v":4,"d":"4 "},"Standard 230 x 150mm with and including PVC and Terra-Cotta vermin proofed louvred air grating on the inside and outside.","No",{"v":28,"d":"28 "},null,{"$f":"ROUND(E492*F492,2)","v":{"v":0,"d":"0.00"}}]
[]
[null,null,"Turning pieces:"]
[]
[null,{"v":5,"d":"5 "},"230mm Wide turning piece to lintel etc","m",{"v":40,"d":"40 "},null,{"$f":"ROUND(E496*F496,2)","v":{"v":0,"d":"0.00"}}]
[]
[null,null,"Galvanised wire ties etc:"]
[]
[null,{"v":6,"d":"6 "},"4mm Diamter roof tie 2500mm girth bent double with one end fixed to timber and other built into brickwork (Provisional)","No",{"v":65,"d":"65 "},null,{"$f":"ROUND(E500*F500,2)","v":{"v":0,"d":"0.00"}}]
[]
[null,null,"FACE BRICKWORK"]
[]
[null,null,"Face bricks (purchase price of R3 800, 00 / 1000 bricks delivered to site excluding VAT) pointed with recessed horizontal and vertical joints.:"]
[]
[null,{"v":7,"d":"7 "},"Half brick wall of facebrick","m²",{"v":400,"d":"400 "},null,{"$f":"ROUND(E506*F506,2)","v":{"v":0,"d":"0.00"}}]
[]
[null,{"v":8,"d":"8 "},"0ne brick wall of facebrick in beamfilling","m²",{"v":150,"d":"150 "},null,{"$f":"ROUND(E508*F508,2)","v":{"v":0,"d":"0.00"}}]
[]
[null,{"v":9,"d":"9 "},"One brickwall faced both sides","m²",{"v":530,"d":"530 "},null,{"$f":"ROUND(E510*F510,2)","v":{"v":0,"d":"0.00"}}]
[]
[null,{"v":10,"d":"10 "},"Fair raking cutting","m",{"v":75,"d":"75 "},null,{"$f":"ROUND(E512*F512,2)","v":{"v":0,"d":"0.00"}}]
[]
[null,{"v":11,"d":"11 "},"Fair cutting and fitting around pipe not exceeding 100mm diameter","No",{"v":18,"d":"18 "},null,{"$f":"ROUND(E514*F514,2)","v":{"v":0,"d":"0.00"}}]
[]
[null,null,"FACE BRICKWORK COPPINGS, SILLS, ETC"]
[]
[null,null,"Face bricks (purchase price of R3 800, 00 / 1000 bricks delivered to site excluding VAT) pointed with recessed horizontal and vertical joints:"]
[]
[null,{"v":12,"d":"12 "},"110mm Wide sills set flat","m",{"v":35,"d":"35 "},null,{"$f":"ROUND(E520*F520,2)","v":{"v":0,"d":"0.00"}}]
[]
[null,{"v":13,"d":"13 "},"220mm Wide sills set sloping and slightly projecting","m",{"v":42,"d":"42 "},null,{"$f":"ROUND(E522*F522,2)","v":{"v":0,"d":"0.00"}}]
[]
[null,{"v":14,"d":"14 "},"Brick-on-edge header course lintels pointed on face and 110mm soffit","m",{"v":25,"d":"25 "},null,{"$f":"ROUND(E524*F524,2)","v":{"v":0,"d":"0.00"}}]
[]
[null,null,"BILL NO. 5 FLOOR COVERINGS, PLASTIC LININGS, ETC",{"$nulls":3},{"$f":"SUM(G529:G537)","v":{"v":0,"d":"0.00"}}]
[]
[null,null,"FLOOR COVERINGS, PLASTIC LININGS, ETC"]
[]
[null,null,"The tenderer is referred to the relevant Clauses in the Standard Preambles to All Trades and to the Supplementary Preambles which are incorporated at the front of these Bills of Quantities"]
[]
[null,null,"FLOOR COVERINGS"]
[]
[null,null,"300 x 300 x 2,5mm \"Marleyflex\" semi-flexible vinyl tiles laid on and bonded to screeded surfaces including all straight cutting and waste and polishing on completion"]
[]
[null,{"v":1,"d":"1 "},"On floors","m²",{"v":1125,"d":"1,125 "},null,{"$f":"ROUND(E536*F536,2)","v":{"v":0,"d":"0.00"}}]
[]
[null,null,"BILL NO. 6 ROOF COVERINGS, ETC",{"$nulls":3},{"$f":"SUM(G541:G580)","v":{"v":0,"d":"0.00"}}]
[]
[null,null,"ROOF COVERINGS, ETC"]
[]
[null,null,"The tenderer is referred to the relevant Clauses in the Standard Preambles to All Trades and to the Supplementary Preambles which are incorporated at the front of these Bills of Quantities"]
[]
[null,null,"SUPPLEMENTARY PREAMBLES"]
[]
[null,null,"PROFILED METAL SHEETING AND ACCESSORIES"]
[]
[null,null,"Sheeting shall be fixed to timber purlins in accordance with the manufacturer's instructions.  Prices for sheeting are to include for all straight cutting and waste, laps, protecting from damage and cleaning down at completion - all in strict accordance with manufacturer's instructions.  Prices for ridges, closers, etc. are to include for all cutting and fitting at ends, etc."]
[]
[null,null,"Note : All roof coverings installed are to comply with SABS Code of Practice 0237 as applicable. All roof sheeting shall be laid under a five year written guarantee for site workmanship and water tightness"]
[]
[null,null,"0,8mm \"ISQ230\" Profile Z275 spelter galvanised steel roof sheeting with chromadek finish to one side and protective primer on the reverse side (colour - dove grey) fixed to timber purlins with pitch not exceeding 25 degrees"]
[]
[null,{"v":1,"d":"1 "},"Chromadek (10 . 5) corrugated 0 . 8mm thick ISQ230 Z275 spelter galvanised steel roof sheeting with chromadek finish to one side and protective primer","m²",{"v":1278,"d":"1,278 "},null,{"$f":"ROUND(E554*F554,2)","v":{"v":0,"d":"0.00"}}]
[]
[null,null,"Sundries to match sheeting and fixing as munufactures instruction"]
[]
[null,{"v":2,"d":"2 "},"AG150 G550 zincalume ridge capping wiht broad flute closures to suit roof profile","m",{"v":104,"d":"104 "},null,{"$f":"ROUND(E558*F558,2)","v":{"v":0,"d":"0.00"}}]
[]
[null,null,"Roof underlays and insulation"]
[]
[null,{"v":3,"d":"3 "},"Sisalation 410 residential grade reinforced aluminium foil insulation fixed in strict accordance with the manufacturer's instructions.","m²",{"v":1111,"d":"1,111 "},null,{"$f":"ROUND(E562*F562,2)","v":{"v":0,"d":"0.00"}}]
[]
[null,null,"Sundries"]
[]
[null,{"v":4,"d":"4 "},"Two coats ABE \"Provonite\" on sawn timbers at eaves","m²",{"v":100,"d":"100 "},null,{"$f":"ROUND(E566*F566,2)","v":{"v":0,"d":"0.00"}}]
[]
[null,{"v":5,"d":"5 "},"Galvanised steel huricane clips nailed to purlins and rafters","No",{"v":650,"d":"650 "},null,{"$f":"ROUND(E568*F568,2)","v":{"v":0,"d":"0.00"}}]
[]
[null,null,"GABLE TOILET ROOF"]
[]
[null,{"v":6,"d":"6 "},"Trusses are at maximum 1200mm centres. Roof covering is galvanized roof sheeting on timber purlins.  Ceilings are 6.4mm Rhinoboard ceiling on 38 x 50mm brandering. The dimensions in the descriptions of the trusses are nominal and actual measurements are to be obtained from the architect and/or the site before design or fabrication commences","m²",{"v":300,"d":"300 "},null,{"$f":"ROUND(E572*F572,2)","v":{"v":0,"d":"0.00"}}]
[]
[null,null,"FASCIAS, ETC"]
[]
[null,null,"\"Everite Nutec\" pressed fibre-cement or other approved"]
[]
[null,{"v":7,"d":"7 "},"225 x 15mm Barge boards including jointing with PVC H-profile barge joiners","m",{"v":294,"d":"294 "},null,{"$f":"ROUND(E578*F578,2)","v":{"v":0,"d":"0.00"}}]
[]
[null,{"v":8,"d":"8 "},"225 x 15mm Fascias screwed to rafter ends with 32mm long x 4mm diameter brass screws countersunk, 2 per rafter","m",{"v":208,"d":"208 "},null,{"$f":"ROUND(E580*F580,2)","v":{"v":0,"d":"0.00"}}]
[]
[null,null,"BILL NO. 7 CEILINGS AND PARTITIONS",{"$nulls":3},{"$f":"SUM(G585:G601)","v":{"v":0,"d":"0.00"}}]
[]
[null,null,"CEILINGS AND PARTITIONS"]
[]
[null,null,"The tenderer is referred to the relevant Clauses in the Standard Preambles to All Trades and to the Supplementary Preambles which are incorporated at the front of these Bills of Quantities"]
[]
[null,null,"NAILED UP CEILINGS"]
[]
[null,null,"6,5mm Rhinoboard ceilings fixed to 38 x 50mm brandering at maximum 400cc including \"H\" profile jointing strips all to manufacturer's instructions"]
[]
[null,{"v":1,"d":"1 "},"6.5mm Rhinoboards ceilings fixed to 38 x50mm brandering at max 400cc including ' H' prifile jointing strips all to manufacturers instructions .","m²",{"v":875,"d":"875 "},null,{"$f":"ROUND(E592*F592,2)","v":{"v":0,"d":"0.00"}}]
[]
[null,{"v":2,"d":"2 "},"Extra over ceiling for forming trapdoor 600 x 600mm hunged pressed metal with 38 x 50mm sawn softwood braced framing","No",{"v":10,"d":"10 "},null,{"$f":"ROUND(E594*F594,2)","v":{"v":0,"d":"0.00"}}]
[]
[null,{"v":3,"d":"3 "},"50 x 19mm S A Pine cornice plugged to wall including sealing along lower edge next to plaster with approved silicone sealant","m",{"v":429,"d":"429 "},null,{"$f":"ROUND(E596*F596,2)","v":{"v":0,"d":"0.00"}}]
[]
[null,null,"ABLUTIONS"]
[]
[null,{"v":4,"d":"4 "},"6.5mm Rhinoboards ceilings fixed to 38 x50mm brandering at max 400cc including ' H' prifile jointing strips all to manufacturers instructions .","m²",{"v":300,"d":"300 "},null,{"$f":"ROUND(E600*F600,2)","v":{"v":0,"d":"0.00"}}]
[]
[null,null,"BILL NO. 8 CARPENTRY AND JOINERY",{"$nulls":3},{"$f":"SUM(G605:G697)","v":{"v":0,"d":"0.00"}}]
[]
[null,null,"CARPENTRY AND JOINERY"]
[]
[null,null,"The tenderer is referred to the relevant Clauses in the Standard Preambles to All Trades and to the Supplementary Preambles which are incorporated at the front of these Bills of Quantities"]
[]
[null,null,"SUPPLEMENTARY PREAMBLES"]
[]
[null,null,"Particle board:"]
[]
[null,null,"Particle board shall comply with the following specifications: SABS EN 317 Parts 1 to 7 for exterior, interior and flooring type particleboard"]
[]
[null,null,"Joinery:"]
[]
[null,null,"Descriptions of frames shall be deemed to include frames, transomes, mullions, rails, etc"]
[]
[null,null,"Descriptions of hardwood joinery shall be deemed to include pelleting of bolt holes"]
[]
[null,null,"Fixing"]
[]
[null,null,"Items described as \"nailed\" shall be deemed to be fixed with hardened steel nails or shot pins to brickwork or concrete"]
[]
[null,null,"Decorative laminate finish:"]
[]
[null,null,"Laminate finish shall be glued under pressure.  Edge strips shall be butt jointed at junctions with adjacent similar finish  Decorative laminates are to comply with SABS 1S0 4586 and SABS 1405"]
[]
[null,null,"ROOFS ETC"]
[]
[null,null,"Plate nailed timber roof truss construction"]
[]
[null,null,"Note : Timber roof trusses are to comply with SABS Code of Practice 0243. (The design, manufacture and erection of timber trusses, including nail-plated and bolted trusses with lapped members :"]
[]
[null,null,"The following is applicable in respect of roof trusses:"]
[]
[null,null,"Trusses are at maximum 1200mm centres. Roof covering is galvanized roof sheeting on timber purlins.  Ceilings are 6.4mm Rhinoboard ceiling on 38 x 50mm brandering. The dimensions in the descriptions of the trusses are nominal and actual measurements are to be obtained from the architect and/or the site before design or fabrication commences"]
[]
[null,{"v":1,"d":"1 "},"Double pitch truss 9800mm span and 1400mm high at apex with 800mm projection one side","No",{"v":87,"d":"87 "},null,{"$f":"ROUND(E638*F638,2)","v":{"v":0,"d":"0.00"}}]
[]
[null,null,"Sawn softwood"]
[]
[null,{"v":2,"d":"2 "},"38 x 114mm Wall plates","m",{"v":208,"d":"208 "},null,{"$f":"ROUND(E642*F642,2)","v":{"v":0,"d":"0.00"}}]
[]
[null,{"v":3,"d":"3 "},"50 x 76mm Purlins","m",{"v":1872,"d":"1,872 "},null,{"$f":"ROUND(E644*F644,2)","v":{"v":0,"d":"0.00"}}]
[]
[null,{"v":4,"d":"4 "},"50 x 76mm Splayed gutter purlin","m",{"v":208,"d":"208 "},null,{"$f":"ROUND(E646*F646,2)","v":{"v":0,"d":"0.00"}}]
[]
[null,{"v":5,"d":"5 "},"38 x 114mm Diagonal bracing to top chord not exceeding 2.40m long","m",{"v":150,"d":"150 "},null,{"$f":"ROUND(E648*F648,2)","v":{"v":0,"d":"0.00"}}]
[]
[null,{"v":6,"d":"6 "},"Galvanised steel huricane clips nailed to purlins and rafters","No",{"v":450,"d":"450 "},null,{"$f":"ROUND(E650*F650,2)","v":{"v":0,"d":"0.00"}}]
[]
[null,{"v":7,"d":"7 "},"Roof ties.","No",{"v":174,"d":"174 "},null,{"$f":"ROUND(E652*F652,2)","v":{"v":0,"d":"0.00"}}]
[]
[null,null,"SKIRTINGS"]
[]
[null,null,"Wrot meranti"]
[]
[null,{"v":8,"d":"8 "},"19 x 70mm Skirting including 25mm quadrant bead nailed","m",{"v":429,"d":"429 "},null,{"$f":"ROUND(E658*F658,2)","v":{"v":0,"d":"0.00"}}]
[]
[null,null,"DOORS"]
[]
[null,null,"Tenderers are referred to Architect's drawings for Door and Window Schedule issued with the tender"]
[]
[null,{"v":9,"d":"9 "},"Type - Door 1 Classroom","No",{"v":14,"d":"14 "},null,{"$f":"ROUND(E664*F664,2)","v":{"v":0,"d":"0.00"}}]
[]
[null,{"v":10,"d":"10 "},"Type - Door 4 Ablutions","No",{"v":20,"d":"20 "},null,{"$f":"ROUND(E666*F666,2)","v":{"v":0,"d":"0.00"}}]
[]
[null,null,"PINNING BOARDS"]
[]
[null,{"v":11,"d":"11 "},"Pinning board size 4795 x 1280mm high formed of 10mm softboard backing and 6mm \"Flortime\" or other approved rubber backed carpet sealed to chipboard with approved adhesive and plugged and screwed to wall, intemediate rail in hardwood to profile and 19 x 45mm Saligna planed filleted fixed to wall with screws at 300mm centres, finished with two coats polyurathane varnish","No",{"v":12,"d":"12 "},null,{"$f":"ROUND(E670*F670,2)","v":{"v":0,"d":"0.00"}}]
[]
[null,null,"CHALKBOARDS"]
[]
[null,{"v":12,"d":"12 "},"Green Chalkboards size 4800 x 1140 to comply with CKS - 36-1980 or equivalent code of practice, complete with chalk rail as one unit in accordance to manufactures detail and fixed 900mm from floor level.","No",{"v":14,"d":"14 "},null,{"$f":"ROUND(E674*F674,2)","v":{"v":0,"d":"0.00"}}]
[]
[null,null,"CUPBOARDS"]
[]
[null,{"v":13,"d":"13 "},"Melamine floor cupboard unit size 3405 x 600 x 900mm high with two drawer cupboard and continuous melamine top with 19 x 45mm saligna edges as per Joinery Schedule Drawing","No",{"v":4,"d":"4 "},null,{"$f":"ROUND(E678*F678,2)","v":{"v":0,"d":"0.00"}}]
[]
[null,{"v":14,"d":"14 "},"Sink unit size 1820 x 600 x 900mm below single stainless steel sink as per Joinery Schedule Drawing","No",{"v":3,"d":"3 "},null,{"$f":"ROUND(E680*F680,2)","v":{"v":0,"d":"0.00"}}]
[]
[null,null,"PIGEON HOLE"]
[]
[null,{"v":15,"d":"15 "},"Pigeon hole shelf unit  overall size 4000 x 420 x 1025 high comprising of 22 mm laminated S.A. Pine vertical divisions, 6mm hardboard shelves, 22mm laminated S.A.Pine bottom and top shelf as per Joinery Schedule Drawing","No",{"v":3,"d":"3 "},null,{"$f":"ROUND(E684*F684,2)","v":{"v":0,"d":"0.00"}}]
[]
[null,null,"SHELVING"]
[]
[null,{"v":16,"d":"16 "},"Wall shelves size 3511 x 344 x 1296mm high with four laminated SA Pine shelves as per Joinery Schedule Drawing","No",{"v":2,"d":"2 "},null,{"$f":"ROUND(E688*F688,2)","v":{"v":0,"d":"0.00"}}]
[]
[null,{"v":17,"d":"17 "},"Wall shelves size 1800 x 344 x 1296mm high with four laminated SA Pine shelves as per Joinery Schedule Drawing","No",{"v":2,"d":"2 "},null,{"$f":"ROUND(E690*F690,2)","v":{"v":0,"d":"0.00"}}]
[]
[null,{"v":18,"d":"18 "},"High fixed wall shelves size 3000 x 300 x 600mm high with four laminated SA Pine shelves as per Joinery Schedule Drawing","No",{"v":2,"d":"2 "},null,{"$f":"ROUND(E692*F692,2)","v":{"v":0,"d":"0.00"}}]
[]
[null,null,"MAGAZINE RACK"]
[]
[null,{"v":19,"d":"19 "},"Magazine rack size 4800 x 247 x 1500mm high complete with 5 tubular steel frames at 280mm centres and laminated saligna shelves as per Joinery Schedule Drawing","No",{"v":4,"d":"4 "},null,{"$f":"ROUND(E696*F696,2)","v":{"v":0,"d":"0.00"}}]
[]
[null,null,"BILL NO.9 RAINWATER GOODS",{"$nulls":3},{"$f":"SUM(G701:G719)","v":{"v":0,"d":"0.00"}}]
[]
[null,null,"RAINWATER GOODS"]
[]
[null,null,"The tenderer is referred to the relevant Clauses in the Standard Preambles to All Trades and to the Supplementary Preambles which are incorporated at the front of these Bills of Quantities"]
[]
[null,null,"RAINWATER DISPOSAL"]
[]
[null,null,"155 x 100 x 115mm Colour coated aluminium OGEE profile seamless gutter with reinforced edges fixed and including brackets to fascia"]
[]
[null,{"v":1,"d":"1 "},"155 x 100 x 115mm Aluminium ogee profile seamless gutter with baked enamel finish fixed with concealed brackets to fascia","m",{"v":248,"d":"248 "},null,{"$f":"ROUND(E708*F708,2)","v":{"v":0,"d":"0.00"}}]
[]
[null,{"v":2,"d":"2 "},"Extra over gutters for stopped ends","No",{"v":21,"d":"21 "},null,{"$f":"ROUND(E710*F710,2)","v":{"v":0,"d":"0.00"}}]
[]
[null,{"v":3,"d":"3 "},"Extra over gutter for outlet and nozzle to suit 100 x 75mm diameter pipe","No",{"v":20,"d":"20 "},null,{"$f":"ROUND(E712*F712,2)","v":{"v":0,"d":"0.00"}}]
[]
[null,{"v":4,"d":"4 "},"100 x 75mm Aluminium colour coated rectangular downpipe fixed to walls or steel with and including brackets","m",{"v":106,"d":"106 "},null,{"$f":"ROUND(E714*F714,2)","v":{"v":0,"d":"0.00"}}]
[]
[null,{"v":5,"d":"5 "},"Extra over for bend","No",{"v":22,"d":"22 "},null,{"$f":"ROUND(E716*F716,2)","v":{"v":0,"d":"0.00"}}]
[]
[null,{"v":6,"d":"6 "},"Extra over for shoe","No",{"v":22,"d":"22 "},null,{"$f":"ROUND(E718*F718,2)","v":{"v":0,"d":"0.00"}}]
[]
[null,null,"BILL NO. 10 PAINTWORK",{"$nulls":3},{"$f":"SUM(G723:G757)","v":{"v":0,"d":"0.00"}}]
[]
[null,null,"PAINTWORK"]
[]
[null,null,"The tenderer is referred to the relevant Clauses in the Standard Preambles to All Trades and to the Supplementary Preambles which are incorporated at the front of these Bills of Quantities"]
[]
[null,null,"PAINTWORK ETC TO NEW WORK"]
[]
[null,null,"ON PLASTER PATCHES."]
[]
[null,null,"Prepare and apply one coat prime and two coats interior quality super acrylic emulsion paint on"]
[]
[null,{"v":1,"d":"1 "},"On plaster patches.","m²",{"v":104,"d":"104 "},null,{"$f":"ROUND(E732*F732,2)","v":{"v":0,"d":"0.00"}}]
[]
[null,null,"ON FIBRE CEMENT"]
[]
[null,null,"Prepare and apply one coat primer and two coats pure acrylic exterior paint on"]
[]
[null,{"v":2,"d":"2 "},"External fibre cement fascias and barge boards","m²",{"v":80,"d":"80 "},null,{"$f":"ROUND(E738*F738,2)","v":{"v":0,"d":"0.00"}}]
[]
[null,null,"ON CEILINGS"]
[]
[null,null,"Prepare and apply one coat of Alkaline basecoat and two coats of PVA to:"]
[]
[null,{"v":3,"d":"3 "},"Ceilings and cornices","m²",{"v":875,"d":"875 "},null,{"$f":"ROUND(E744*F744,2)","v":{"v":0,"d":"0.00"}}]
[]
[null,null,"EXTERNAL WALLS"]
[]
[null,{"v":4,"d":"4 "},"Paint to external walls.","m²",{"v":787,"d":"787 "},null,{"$f":"ROUND(E748*F748,2)","v":{"v":0,"d":"0.00"}}]
[]
[null,null,"INTERNAL WALLS"]
[]
[null,{"v":5,"d":"5 "},"Paint to internal walls","m²",{"v":1201,"d":"1,201 "},null,{"$f":"ROUND(E752*F752,2)","v":{"v":0,"d":"0.00"}}]
[]
[null,null,"ROOF PAINTING"]
[]
[null,{"v":6,"d":"6 "},"Paint to roof as per architech specification.","m²",{"v":1528,"d":"1,528 "},null,{"$f":"ROUND(E756*F756,2)","v":{"v":0,"d":"0.00"}}]
[]
[null,null,"BILL NO. 11 IRONMONGERY",{"$nulls":3},{"$f":"SUM(G761:G817)","v":{"v":0,"d":"0.00"}}]
[]
[null,null,"IRONMONGERY"]
[]
[null,null,"The tenderer is referred to the relevant Clauses in the Standard Preambles to All Trades and to the Supplementary Preambles which are incorporated at the front of these Bills of Quantities"]
[]
[null,null,"SUPPLEMENTARY PREAMBLES"]
[]
[null,null,"Finishes to ironmongery"]
[]
[null,null,"Where applicable finishes to ironmongery are indicated by suffixes in accordance with the following list: BS Satin bronze lacquered CH Chromium plated SC Satin chromium plated SE Silver enamelled GE Grey enamelled AS Anodised silver AB Anodised bronze AG Anodised gold ABL Anodised black PB Polished brass PL Polished and lacquered PT Epoxy coated SD Sanded"]
[]
[null,null,"BATHROOM FITTINGS"]
[]
[null,{"v":1,"d":"1 "},"\"Kimberly Clark SE2 405597\" or other approved toilet tissue holder plugged to wall","No",{"v":19,"d":"19 "},null,{"$f":"ROUND(E772*F772,2)","v":{"v":0,"d":"0.00"}}]
[]
[null,null,"HINGES, BOLTS, ETC"]
[]
[null,null,"\"Dorma\""]
[]
[null,null,"DBB-SS-009 102 x 75 x 3mm stainless steel two ball bearing butt hinge"]
[]
[null,{"v":2,"d":"2 "},"Supply (PC Amount R 105.00/Pair nett)","Pairs",{"v":35,"d":"35 "},null,{"$f":"ROUND(E780*F780,2)","v":{"v":0,"d":"0.00"}}]
[]
[null,{"v":3,"d":"3 "},"Install (eg. labour, etc)","Pairs",{"v":35,"d":"35 "},null,{"$f":"ROUND(E782*F782,2)","v":{"v":0,"d":"0.00"}}]
[]
[null,null,"DRR-SS-012 102 x 75 x 3mm stainless steel rising butt hinge"]
[]
[null,null,"LOCKS"]
[]
[null,null,"D034S SS lever sash lock with two keys"]
[]
[null,{"v":4,"d":"4 "},"Supply (PC Amount R 167.47/No. nett)","No",{"v":35,"d":"35 "},null,{"$f":"ROUND(E790*F790,2)","v":{"v":0,"d":"0.00"}}]
[]
[null,{"v":5,"d":"5 "},"Install (eg. labour, etc)","No",{"v":35,"d":"35 "},null,{"$f":"ROUND(E792*F792,2)","v":{"v":0,"d":"0.00"}}]
[]
[null,null,"HANDLES"]
[]
[null,null,"\"Dorma\""]
[]
[null,null,"SH821 lever handles on rose with cylinder escutcheons stainless steel"]
[]
[null,{"v":6,"d":"6 "},"Supply (PC Amount R 273.33/Pair nett)","Pairs",{"v":35,"d":"35 "},null,{"$f":"ROUND(E800*F800,2)","v":{"v":0,"d":"0.00"}}]
[]
[null,{"v":7,"d":"7 "},"Install (eg. labour, etc)","Pairs",{"v":35,"d":"35 "},null,{"$f":"ROUND(E802*F802,2)","v":{"v":0,"d":"0.00"}}]
[]
[null,null,"SUNDRIES"]
[]
[null,null,"DDS-SS-017 Floor Mounted Door Stop"]
[]
[null,{"v":8,"d":"8 "},"Supply (PC Amount R 37.50/No. nett)","No",{"v":35,"d":"35 "},null,{"$f":"ROUND(E808*F808,2)","v":{"v":0,"d":"0.00"}}]
[]
[null,{"v":9,"d":"9 "},"Install (eg. labour, etc)","No",{"v":35,"d":"35 "},null,{"$f":"ROUND(E810*F810,2)","v":{"v":0,"d":"0.00"}}]
[]
[null,null,"Dorma DDS-SS-020 stainless steel wall buffer - 80mm projection"]
[]
[null,{"v":10,"d":"10 "},"Supply (PC Amount R 69.48/No. nett)","No",{"v":35,"d":"35 "},null,{"$f":"ROUND(E814*F814,2)","v":{"v":0,"d":"0.00"}}]
[]
[null,{"v":11,"d":"11 "},"Install (eg. labour, etc)","No",{"v":35,"d":"35 "},null,{"$f":"ROUND(E816*F816,2)","v":{"v":0,"d":"0.00"}}]
[]
[null,null,"BILL NO. 12 METALWORK",{"$nulls":3},{"$f":"SUM(G821:G864)","v":{"v":0,"d":"0.00"}}]
[]
[null,null,"METALWORK"]
[]
[null,null,"The tenderer is referred to the relevant Clauses in the Standard Preambles to All Trades and to the Supplementary Preambles which are incorporated at the front of these Bills of Quantities"]
[]
[null,null,"SUPPLEMENTARY PREAMBLES"]
[]
[null,null,"Descriptions"]
[]
[null,null,"Descriptions of bolts shall be deemed to include nuts and washers Descriptions of expansion anchors and bolts and chemical anchors and bolts shall be deemed to include nuts, washers and mortices in brickwork or concrete Metalwork described as\"holed for bolt(s)\" shall be deemed to exclude the bolts unless otherwise described"]
[]
[null,null,"NOTE :  Pressed steel door frames shall be supplied with  three 100mm steel washered brass butt hinges and frames for two leaved doors with three pairs of 100mm steel washered brass butt hinges  Transomes for fanlights shall be fitted with a pair of 75mm steel washered butt hinges"]
[]
[null,null,"GALVANISED STEEL DOOR FRAMES"]
[]
[null,null,"1,2mm Double rebated pressed steel frames suitable for one brick wall"]
[]
[null,{"v":1,"d":"1 "},"Frame for door size 813  x 2032mm high in half brick walls","No",{"v":21,"d":"21 "},null,{"$f":"ROUND(E836*F836,2)","v":{"v":0,"d":"0.00"}}]
[]
[null,{"v":2,"d":"2 "},"Frame for door size 813  x 2032mm high in onebrick walls","No",{"v":14,"d":"14 "},null,{"$f":"ROUND(E838*F838,2)","v":{"v":0,"d":"0.00"}}]
[]
[null,null,"GALVANISED STEEL WINDOWS"]
[]
[null,null,"Tenderers are referred to Architect's drawings for Door and Window Schedule issued with the tender"]
[]
[null,null,"The following items to be priced in accordance with the above schedules to include all items viz., frame,  sealing, ironmongery, protection, etc., complete (painting elsewhere measured)"]
[]
[null,null,"Residential sction windows as Durowin or equal approved with 10mm square horizontal burglar bars"]
[]
[null,{"v":3,"d":"3 "},"1302 x 978mm Window Type SS42 Toilet windows.","No",{"v":30,"d":"30 "},null,{"$f":"ROUND(E848*F848,2)","v":{"v":0,"d":"0.00"}}]
[]
[null,{"v":4,"d":"4 "},"1302 x 1445mm Window Type SS43 classroom windows","No",{"v":91,"d":"91 "},null,{"$f":"ROUND(E850*F850,2)","v":{"v":0,"d":"0.00"}}]
[]
[null,null,"GALVANISED MILD STEEL"]
[]
[null,null,"Galvanised mild steel security gates:"]
[]
[null,{"v":5,"d":"5 "},"Gate size 1000 x 2050mm high overall, comprising of 40 x 60 x 3m square section outer frame and 19mm diameter vertical bars at 110mm centres with two 40 x 6mm horizontal supports holed for vertical rod, in 60 x 40 x 3mm frame to sides and top with three pin hinges and pair of padlock plates for locking.","No",{"v":14,"d":"14 "},null,{"$f":"ROUND(E856*F856,2)","v":{"v":0,"d":"0.00"}}]
[]
[null,null,"SUNDRY GALVANISED STEELWORK"]
[]
[null,{"v":6,"d":"6 "},"Column 2600mm high to walkway roof comprising 70mm diameter x 3mm wall thickness pipe column with 80 x 170 x 10mm base plate welded on and twice drilled for fixing and 70 x 70 x 150mm angle bracket at top welded on and twice drilled for fixing.","No",{"v":16,"d":"16 "},null,{"$f":"ROUND(E860*F860,2)","v":{"v":0,"d":"0.00"}}]
[]
[null,{"v":7,"d":"7 "},"10mm Diameter bolt with 100mm long shank and head, nut and washer including drilling timber and fixing.","No",{"v":40,"d":"40 "},null,{"$f":"ROUND(E862*F862,2)","v":{"v":0,"d":"0.00"}}]
[]
[null,{"v":8,"d":"8 "},"M12 Expansion anchor bolt including drilling concrete and fixing.","No",{"v":40,"d":"40 "},null,{"$f":"ROUND(E864*F864,2)","v":{"v":0,"d":"0.00"}}]
[]
[null,null,"BILL NO. 13 PLASTERING",{"$nulls":3},{"$f":"SUM(G869:G886)","v":{"v":0,"d":"0.00"}}]
[]
[null,null,"PLASTERING"]
[]
[null,null,"The tenderer is referred to the relevant Clauses in the Standard Preambles to All Trades and to the Supplementary Preambles which are incorporated at the front of these Bills of Quantities"]
[]
[null,null,"SCREEDS"]
[]
[null,null,"1:3 Cement plaster screeds steel trowelled on concrete"]
[]
[null,{"v":1,"d":"1 "},"40mm Thick on floors and landings","m²",{"v":875,"d":"875 "},null,{"$f":"ROUND(E876*F876,2)","v":{"v":0,"d":"0.00"}}]
[]
[null,null,"On walls"]
[]
[null,{"v":2,"d":"2 "},"Plaster to beam filling","m²",{"v":281,"d":"281 "},null,{"$f":"ROUND(E880*F880,2)","v":{"v":0,"d":"0.00"}}]
[]
[null,null,"PLASTER PATCHES"]
[]
[null,null,"Cement plaster on brickwork"]
[]
[null,{"v":3,"d":"3 "},"Plaster patches in beam filling.","m²",{"v":208,"d":"208 "},null,{"$f":"ROUND(E886*F886,2)","v":{"v":0,"d":"0.00"}}]
[]
[null,null,"BILL NO.14 PLUMBING AND DRAINAGE",{"$nulls":3},{"$f":"SUM(G891:G1034)","v":{"v":0,"d":"0.00"}}]
[]
[null,null,"RAINWATER TANKS"]
[]
[null,{"v":1,"d":"1 "},"5000 Litre JoJo tank placed in position of tank stand (size 1420mm diameter x 1800mm high, stand elsewhere measured)","No",{"v":8,"d":"8 "},null,{"$f":"ROUND(E892*F892,2)","v":{"v":0,"d":"0.00"}}]
[]
[null,{"v":2,"d":"2 "},"5mm Link galvanised steel chain pulled into 25mm hose pipe and securing tank and to tank stand.","m",{"v":45,"d":"45 "},null,{"$f":"ROUND(E894*F894,2)","v":{"v":0,"d":"0.00"}}]
[]
[null,{"v":3,"d":"3 "},"8mm Diameter galvanised steel U-bolt with nuts and washers securing two chains at cross-over at top.","No",{"v":64,"d":"64 "},null,{"$f":"ROUND(E896*F896,2)","v":{"v":0,"d":"0.00"}}]
[]
[null,{"v":4,"d":"4 "},"Expansion anchor with 10mm diameter bolt including drilling brickwork and fixing chain to wall.","No",{"v":64,"d":"64 "},null,{"$f":"ROUND(E898*F898,2)","v":{"v":0,"d":"0.00"}}]
[]
[null,{"v":5,"d":"5 "},"15mm Brass lockable bib tap fixed to plastic rainwater tank including hole through side of tank ans short length of threaded pipe with two nuts, washers and sealing washers.","No",{"v":8,"d":"8 "},null,{"$f":"ROUND(E900*F900,2)","v":{"v":0,"d":"0.00"}}]
[]
[null,{"v":6,"d":"6 "},"50mm PVC overflow outlet from tank comprising about 3m girth of pipe twice fixed with holderbats to brick base of tank stand and including the necessary threaded connection and sealing washers and including hole through tank.","No",{"v":16,"d":"16 "},null,{"$f":"ROUND(E902*F902,2)","v":{"v":0,"d":"0.00"}}]
[]
[null,null,"FIRE EQUIPMENT"]
[]
[null,{"v":7,"d":"7 "},"9Kg Dry powder fire extinguisher on and including wall fixing bracket fixed to wall.","No",{"v":4,"d":"4 "},null,{"$f":"ROUND(E906*F906,2)","v":{"v":0,"d":"0.00"}}]
[]
[null,null,"Flush pans"]
[]
[null,null,"Flush pans shall have straight or side outlets and \"P\" or \"S\" traps as necessary"]
[]
[null,null,"Stainless steelbasins, sinks, wash troughs, urinals, etc."]
[]
[null,null,"Units shall have standard aprons on all exposed edges and tiling keys against walls where applicable"]
[]
[null,null,"Waste unions"]
[]
[null,null,"Descriptions of waste unions shall be deemed to include rubber or vulcanite plugs and chains fixed to fittings"]
[]
[null,null,"SOIL DRAINAGE uPVC Pipes:"]
[]
[null,{"v":8,"d":"8 "},"110mm pipes verticaly or ramped to cleaning eyes etc (no excavation)","m",{"v":50,"d":"50 "},null,{"$f":"ROUND(E922*F922,2)","v":{"v":0,"d":"0.00"}}]
[]
[null,{"v":9,"d":"9 "},"110mm Pipes laid in including trenches not exceeding 1m deep.","m",{"v":30,"d":"30 "},null,{"$f":"ROUND(E924*F924,2)","v":{"v":0,"d":"0.00"}}]
[]
[null,null,"Extra over uPVC pipes for fittings:"]
[]
[null,{"v":10,"d":"10 "},"110mm Bend.","No",{"v":10,"d":"10 "},null,{"$f":"ROUND(E928*F928,2)","v":{"v":0,"d":"0.00"}}]
[]
[null,{"v":11,"d":"11 "},"110mm Junction.","No",{"v":10,"d":"10 "},null,{"$f":"ROUND(E930*F930,2)","v":{"v":0,"d":"0.00"}}]
[]
[null,{"v":12,"d":"12 "},"110mm Access junction.","No",{"v":10,"d":"10 "},null,{"$f":"ROUND(E932*F932,2)","v":{"v":0,"d":"0.00"}}]
[]
[null,null,"Pre-cast concrete gulleys:"]
[]
[null,{"v":13,"d":"13 "},"150mm Gulley not exceeding 2000mm deep.","No",{"v":5,"d":"5 "},null,{"$f":"ROUND(E936*F936,2)","v":{"v":0,"d":"0.00"}}]
[]
[null,null,"Gratings, covers, etc:"]
[]
[null,{"v":14,"d":"14 "},"110mm Roding eye.","No",{"v":5,"d":"5 "},null,{"$f":"ROUND(E940*F940,2)","v":{"v":0,"d":"0.00"}}]
[]
[null,{"v":15,"d":"15 "},"100mm ABC cast iron cleaning eye cover.","No",{"v":5,"d":"5 "},null,{"$f":"ROUND(E942*F942,2)","v":{"v":0,"d":"0.00"}}]
[]
[null,null,"Sundries:"]
[]
[null,{"v":16,"d":"16 "},"Extra over excavation in earth for pipe trenches, chambers, etc for excavation in soft rock","m³",{"v":5,"d":"5 "},null,{"$f":"ROUND(E946*F946,2)","v":{"v":0,"d":"0.00"}}]
[]
[null,{"v":17,"d":"17 "},"Extra over excavation in earth for pipe trenches, chamber,etc for excavation in hard rock.","m³",{"v":5,"d":"5 "},null,{"$f":"ROUND(E948*F948,2)","v":{"v":0,"d":"0.00"}}]
[]
[null,null,"SANITARY FITTINGS"]
[]
[null,null,"Approved:"]
[]
[null,{"v":18,"d":"18 "},"Vitreous china Daisy semi close suite with 90degree washdown pan (code 7514000 ) and matching vandal proof 6litre Hibiscus code (710511) cistern complete with front flush push button, lid, fitments and flushpipe and Hart Calmac heavy duty solid white double flap toilet seat.","No",{"v":20,"d":"20 "},null,{"$f":"ROUND(E954*F954,2)","v":{"v":0,"d":"0.00"}}]
[]
[null,{"v":19,"d":"19 "},"Single bowl concrete wash trough, size 500 x 600 x 258mm fitted to wall with and including concrete legs and plug, chain and waste union","No",{"v":5,"d":"5 "},null,{"$f":"ROUND(E956*F956,2)","v":{"v":0,"d":"0.00"}}]
[]
[null,{"v":20,"d":"20 "},"Urinary","No",{"v":8,"d":"8 "},null,{"$f":"ROUND(E958*F958,2)","v":{"v":0,"d":"0.00"}}]
[]
[null,{"v":21,"d":"21 "},"Wash hand basin","No",{"v":13,"d":"13 "},null,{"$f":"ROUND(E960*F960,2)","v":{"v":0,"d":"0.00"}}]
[]
[null,null,"TAPS, VALVES, ECT"]
[]
[null,null,"Cobra Watertech' or similar approved:"]
[]
[null,{"v":22,"d":"22 "},"331 4ST-15 Stella square pattern pillartap","No",{"v":13,"d":"13 "},null,{"$f":"ROUND(E966*F966,2)","v":{"v":0,"d":"0.00"}}]
[]
[null,{"v":23,"d":"23 "},"232/350 Angle regulating valve","No",{"v":5,"d":"5 "},null,{"$f":"ROUND(E968*F968,2)","v":{"v":0,"d":"0.00"}}]
[]
[null,{"v":24,"d":"24 "},"20mm Brass fullway gate wheelvalve (SABS 776-Class 9) with non-rising spindle","No",{"v":5,"d":"5 "},null,{"$f":"ROUND(E970*F970,2)","v":{"v":0,"d":"0.00"}}]
[]
[null,null,"SANITARY PLUMBING"]
[]
[null,null,"Soil waste and vent and fitting shall be solvent welded jointed"]
[]
[null,null,"uPVC pipes"]
[]
[null,{"v":25,"d":"25 "},"50mm Pipes.","m",{"v":50,"d":"50 "},null,{"$f":"ROUND(E978*F978,2)","v":{"v":0,"d":"0.00"}}]
[]
[null,{"v":26,"d":"26 "},"50mm Pipes laid under solid floors.","m",{"v":50,"d":"50 "},null,{"$f":"ROUND(E980*F980,2)","v":{"v":0,"d":"0.00"}}]
[]
[null,null,"Extra over uPVC pipes for fittings:"]
[]
[null,{"v":27,"d":"27 "},"50mm Bend.","No",{"v":12,"d":"12 "},null,{"$f":"ROUND(E984*F984,2)","v":{"v":0,"d":"0.00"}}]
[]
[null,{"v":28,"d":"28 "},"50mm IE Bend","No",{"v":12,"d":"12 "},null,{"$f":"ROUND(E986*F986,2)","v":{"v":0,"d":"0.00"}}]
[]
[null,{"v":29,"d":"29 "},"50mm Vent valve","No",{"v":12,"d":"12 "},null,{"$f":"ROUND(E988*F988,2)","v":{"v":0,"d":"0.00"}}]
[]
[null,{"v":30,"d":"30 "},"110mm Access bend","No",{"v":12,"d":"12 "},null,{"$f":"ROUND(E990*F990,2)","v":{"v":0,"d":"0.00"}}]
[]
[null,{"v":31,"d":"31 "},"110mm Junction","No",{"v":12,"d":"12 "},null,{"$f":"ROUND(E992*F992,2)","v":{"v":0,"d":"0.00"}}]
[]
[null,{"v":32,"d":"32 "},"110mm Access junction","No",{"v":12,"d":"12 "},null,{"$f":"ROUND(E994*F994,2)","v":{"v":0,"d":"0.00"}}]
[]
[null,{"v":33,"d":"33 "},"110mm Reducing junction","No",{"v":12,"d":"12 "},null,{"$f":"ROUND(E996*F996,2)","v":{"v":0,"d":"0.00"}}]
[]
[null,{"v":34,"d":"34 "},"110mm GI Two way vent valve","No",{"v":12,"d":"12 "},null,{"$f":"ROUND(E998*F998,2)","v":{"v":0,"d":"0.00"}}]
[]
[null,{"v":35,"d":"35 "},"110mm IE Bend.","No",{"v":12,"d":"12 "},null,{"$f":"ROUND(E1000*F1000,2)","v":{"v":0,"d":"0.00"}}]
[]
[null,{"v":36,"d":"36 "},"110mm Pan Connector","No",{"v":12,"d":"12 "},null,{"$f":"ROUND(E1002*F1002,2)","v":{"v":0,"d":"0.00"}}]
[]
[null,{"v":37,"d":"37 "},"Testing waste pipe system","Item",{"v":1,"d":"1 "},null,{"$f":"ROUND(E1004*F1004,2)","v":{"v":0,"d":"0.00"}}]
[]
[null,null,"WATER SUPPLIES"]
[]
[null,null,"HDPE pressure pipes class 12:"]
[]
[null,{"v":38,"d":"38 "},"25mm Pipes laid in and including trenches not exceeding 1m deep.","m",{"v":12,"d":"12 "},null,{"$f":"ROUND(E1010*F1010,2)","v":{"v":0,"d":"0.00"}}]
[]
[null,{"v":39,"d":"39 "},"35mm Pipes laid in and including trenches not exceeding 1m deep.","m",{"v":12,"d":"12 "},null,{"$f":"ROUND(E1012*F1012,2)","v":{"v":0,"d":"0.00"}}]
[]
[null,null,"Extra over HDPE pressure pipes for \"plascon\" fittings:"]
[]
[null,{"v":40,"d":"40 "},"25mm Copper elbow adaptor.","No",{"v":20,"d":"20 "},null,{"$f":"ROUND(E1016*F1016,2)","v":{"v":0,"d":"0.00"}}]
[]
[null,{"v":41,"d":"41 "},"35mm Copper elbow adaptor.","No",{"v":20,"d":"20 "},null,{"$f":"ROUND(E1018*F1018,2)","v":{"v":0,"d":"0.00"}}]
[]
[null,null,"CLASS O copper pipes:"]
[]
[null,{"v":42,"d":"42 "},"15mm Pipes","m",{"v":15,"d":"15 "},null,{"$f":"ROUND(E1022*F1022,2)","v":{"v":0,"d":"0.00"}}]
[]
[null,{"v":43,"d":"43 "},"22mm Pipes.","m",{"v":15,"d":"15 "},null,{"$f":"ROUND(E1024*F1024,2)","v":{"v":0,"d":"0.00"}}]
[]
[null,null,"Extra over class 0 copper pipes for capillary fittings:"]
[]
[null,{"v":44,"d":"44 "},"15mm Fittings","No",{"v":10,"d":"10 "},null,{"$f":"ROUND(E1028*F1028,2)","v":{"v":0,"d":"0.00"}}]
[]
[null,{"v":45,"d":"45 "},"22mm Fittings","No",{"v":10,"d":"10 "},null,{"$f":"ROUND(E1030*F1030,2)","v":{"v":0,"d":"0.00"}}]
[]
[null,null,"TESTING"]
[]
[null,{"v":46,"d":"46 "},"Testing water supply system","Item",{"v":1,"d":"1 "},null,{"$f":"ROUND(E1034*F1034,2)","v":{"v":0,"d":"0.00"}}]
[]
[null,null,"BILL NO. 15 GLAZING",{"$nulls":3},{"$f":"SUM(G1038:G1051)","v":{"v":0,"d":"0.00"}}]
[]
[null,null,"GLAZING"]
[]
[null,null,"The tenderer is referred to the relevant Clauses in the Standard Preambles to All Trades and to the Supplementary Preambles which are incorporated at the front of these Bills of Quantities"]
[]
[null,null,"4mm Clear float glass"]
[]
[null,{"v":1,"d":"1 "},"Panes exceeding 0,5m2 and not exceeding 2m2","m²",{"v":455,"d":"455 "},null,{"$f":"ROUND(E1044*F1044,2)","v":{"v":0,"d":"0.00"}}]
[]
[null,null,"TOPS, SHELVES, DOORS, MIRRORS, ETC"]
[]
[null,null,"6mm Silvered float glass copper backed mirrors with polished edges holed for and fixed with chromium plated dome capped mirror screws with rubber buffers to plugs in brickwork"]
[]
[null,{"v":2,"d":"2 "},"Mirror 450 x 600mm x 6mm high with four screws","No",{"v":19,"d":"19 "},null,{"$f":"ROUND(E1050*F1050,2)","v":{"v":0,"d":"0.00"}}]
[]
[null,null,"BILL NO. 16 PROVISIONAL SUMS",{"$nulls":3},{"$f":"SUM(G1055:G1085)","v":{"v":724625,"d":"724,625.00"}}]
[]
[null,null,"PROVISIONAL SUMS ETC"]
[]
[null,null,"For preambles see \"Model Preambles for Trades\""]
[]
[null,null,"SUPPLEMENTARY PREAMBLES"]
[]
[null,null,"General"]
[]
[null,null,"Prime cost amounts and provisional sums are net.  Prime cost amounts shall include for delivery to site of all articles concerned  Provisional sums are for material and equipment supplied and installed complete by firms of specialists"]
[]
[null,null,"Profit"]
[]
[null,null,"Where stated, the contractor may allow for profit if required"]
[]
[null,null,"General attendance on nominated/selected subcontractors"]
[]
[null,null,"The item \"attendance\" which follows each provisional sum for nominated/selected subcontractors' work, shall be deemed to cover all the contractor's costs incurred in providing free of charge to the nominated/selected subcontractors the contractor's duties as described in clause 12.2 of the JBCC N/S Subcontract Agreement"]
[]
[null,null,"ELECTRICAL INSTALLATION"]
[]
[null,{"v":1,"d":"1 "},"Allow the provisional amount R568 750,00 for internal electrical installation to be executed complete","Item",{"v":1,"d":"1 "},{"v":568750,"d":"568,750.00"},{"$f":"ROUND(E1074*F1074,2)","v":{"v":568750,"d":"568,750.00"}}]
[]
[null,{"v":2,"d":"2 "},"Allow profit 5%","%",null,{"v":568750,"d":"568,750.00"},{"$f":"G1074*5%","v":{"v":28437.5,"d":"28,437.50"}}]
[]
[null,{"v":3,"d":"3 "},"Allow for attendance 5%","%",null,{"v":568750,"d":"568,750.00"},{"$f":"F1078*5%","v":{"v":28437.5,"d":"28,437.50"}}]
[]
[null,{"v":4,"d":"4 "},"Allow the provisional amount R90 000,00  for CLO","Item",{"v":1,"d":"1 "},{"v":90000,"d":"90,000.00"},{"$f":"E1080*F1080","v":{"v":90000,"d":"90,000.00"}}]
[]
[null,null,"Allow profit 5%","%",null,{"v":90000,"d":"90,000.00"},{"$f":"F1082*5%","v":{"v":4500,"d":"4,500.00"}}]
[]
[null,null,"Allow for attendance 5%","%",null,{"v":90000,"d":"90,000.00"},{"$f":"F1084*5%","v":{"v":4500,"d":"4,500.00"}}]
[]
[null,null,"CPD BUILD PROGRAMME"]
[]
[null,null,"Note to tenderers: As CPGs may not provide any bidder a competitive advantage. Provisional amounts and fixed percentages for profit and attendance have been provided. Only the provisional amount will be adjusted once the awarded tender amount and/or the beneficiaries have been appointed, and the final values have been ascertained. "]
[]
[null,null,"MINIMUM TARGETED LOCAL BUILDING MATERIAL MANUFACTURERS"]
[null,null,"Provision is made for the Minimum Targeted Local Building Material Manufacturers CPG in the execution of this project as described in   C3.1 Project Specifications.  Allowance for monitoring and monthly reporting on material purchased from Local Building Material Manufacturers by main contractor and subcontractors based on determination by Employer taking into account specific project variables","PS",{"v":1,"d":"1 "},{"v":24914.409500000005,"d":"24,914.41"},{"v":24914.409500000005,"d":"24,914.41"}]
[null,null,"Allowance for profit and attendance, all inclusive of associated costs to the contractor for implementation. ","%",{"v":0.05,"d":"0 "}]
[]
[null,null,"Allowance for attendance all inclusive of associated costs to the contractor for implementation. ","%",{"v":0.05,"d":"0 "}]
[]
[null,null,"MINIMUM TARGETED LOCAL BUILDING MATERIAL SUPPLIERS "]
[null,null,"Provision is made for the Minimum Targeted Local Building Material Suppliers CPG in the execution of this project as described in   C3.1 Project Specifications. Allowance for monitoring and monthly reporting on material purchased from Local Building Material Suppliers by main contractor and subcontractors based on determination by Employer  taking into account specific project variables ","PS",{"v":1,"d":"1 "},{"v":24914.409500000005,"d":"24,914.41"},{"v":24914.409500000005,"d":"24,914.41"}]
[null,null,"Allowance for profit all inclusive of associated costs to the contractor for implementation. ","%",{"v":5,"d":"5 "}]
[null,null,"Allowance for attendance all inclusive of associated costs to the contractor for implementation. ","%",{"v":5,"d":"5 "}]
[]
[null,null,"MINIMUM TARGETED ENTERPRISE DEVELOPMENT"]
[null,null,"A provisional amount has been allowed for in the execution of this project as described in  C3.1 Project Specifications. The provisional amount allowed is for the appointment of training coordinator, mentor, training service providers and training of the beneficiary enterprises including monitoring and monthly reporting.","PS",{"v":1,"d":"1 "},{"v":249144.09500000003,"d":"249,144.10"},{"v":249144.09500000003,"d":"249,144.10"}]
[null,null,"Allowance for profit all inclusive of associated costs to the contractor for implementation. ","%",{"v":5,"d":"5 "}]
[null,null,"Allowance for attendance all inclusive of associated costs to the contractor for implementation. ","%",{"v":5,"d":"5 "}]
[]
[null,null,"LABOUR INTENSIVE PARTICIPATION GOAL"]
[null,null,"Labour Intensive Participation Goal - Allowance for monthly reporting of labour intensive works by main contractor based on determination by Employer taking into account specific project variables. Allowance for monitoring and monthly reporting on Works executed by means of Labour Intensive methods by main contractor and subcontractors based on determination by Employer taking into account specific project variables ",null,{"v":1,"d":"1 "},{"v":72000,"d":"72,000.00"}]
[null,null,"Allowance for profit all inclusive of associated costs to the contractor for implementation. ","%",{"v":5,"d":"5 "}]
[]
[]
[null,null,"BILL NO. 16 EXTERNAL WORKS",{"$nulls":3},{"$f":"SUM(G1114:G1260)","v":{"v":0,"d":"0.00"}}]
[]
[null,null,"THE FOLLOWING IN SEPTIC TANKS, ETC."]
[]
[null,null,"Site clearance:"]
[]
[null,{"v":1,"d":"1 "},"Digging up and removing rubbish, debris, vegetation, hedges, shrubs and trees not exceeding 200mm girth, bush, etc","m²",{"v":60,"d":"60 "},null,{"$f":"ROUND(E1117*F1117,2)","v":{"v":0,"d":"0.00"}}]
[]
[null,null,"Excavation in earth not exceeding 2m deep:"]
[]
[null,{"v":2,"d":"2 "},"Holes","m³",{"v":90,"d":"90 "},null,{"$f":"ROUND(E1121*F1121,2)","v":{"v":0,"d":"0.00"}}]
[]
[null,null,"Extra over trench and hole excavations in earth for excavation in:"]
[]
[null,{"v":3,"d":"3 "},"Soft rock","m³",{"v":40,"d":"40 "},null,{"$f":"ROUND(E1125*F1125,2)","v":{"v":0,"d":"0.00"}}]
[]
[null,{"v":4,"d":"4 "},"Hard rock","m³",{"v":20,"d":"20 "},null,{"$f":"ROUND(E1127*F1127,2)","v":{"v":0,"d":"0.00"}}]
[]
[null,null,"Extra over all excavations for carting away:"]
[]
[null,{"v":5,"d":"5 "},"Extra over all excavations for carting away surplus material from excavations and/or stockpile on site to a dumping site to be located by the Contractor","m³",{"v":140,"d":"140 "},null,{"$f":"ROUND(E1131*F1131,2)","v":{"v":0,"d":"0.00"}}]
[]
[null,null,"Risk of collapse of excavations:"]
[]
[null,{"v":6,"d":"6 "},"Sides of trench and hole excavations not exceeding 1,5m deep","m²",{"v":120,"d":"120 "},null,{"$f":"ROUND(E1135*F1135,2)","v":{"v":0,"d":"0.00"}}]
[]
[null,null,"Keeping excavations free of water:"]
[]
[null,{"v":7,"d":"7 "},"Keeping excavations free of water","Item",{"v":1,"d":"1 "},null,{"$f":"ROUND(E1139*F1139,2)","v":{"v":0,"d":"0.00"}}]
[]
[null,null,"Earth filling obtained from the excavations and/or prescribed stock piles on site (not compacted):"]
[]
[null,{"v":8,"d":"8 "},"On top of septic tank as soil cover","m³",{"v":15,"d":"15 "},null,{"$f":"ROUND(E1143*F1143,2)","v":{"v":0,"d":"0.00"}}]
[]
[null,null,"Earth filling obtained from the excavations and /or prescribed stock piles on site including compacted to 93% Mod AASHTO density:"]
[]
[null,{"v":9,"d":"9 "},"Backfilling behind walls etc","m³",{"v":10,"d":"10 "},null,{"$f":"ROUND(E1147*F1147,2)","v":{"v":0,"d":"0.00"}}]
[]
[null,null,"Compaction of surfaces:"]
[]
[null,{"v":10,"d":"10 "},"Compaction of ground surface under floors etc including scarifying for a depth of 150mm, breaking down oversize material, adding suitable material where necessary and compacting to 93% Mod AASHTO density","m²",{"v":25,"d":"25 "},null,{"$f":"ROUND(E1151*F1151,2)","v":{"v":0,"d":"0.00"}}]
[]
[null,null,"25MPa/19mm Reinforced concrete:"]
[]
[null,{"v":11,"d":"11 "},"Surface beds bottom of septic tank","m³",{"v":5,"d":"5 "},null,{"$f":"ROUND(E1155*F1155,2)","v":{"v":0,"d":"0.00"}}]
[]
[null,{"v":12,"d":"12 "},"Slabs","m³",{"v":5,"d":"5 "},null,{"$f":"ROUND(E1157*F1157,2)","v":{"v":0,"d":"0.00"}}]
[]
[null,null,"Finishing top surfaces of concrete smooth with a steel trowel"]
[]
[null,{"v":13,"d":"13 "},"Surface beds, slabs, etc.","m²",{"v":5,"d":"5 "},null,{"$f":"ROUND(E1161*F1161,2)","v":{"v":0,"d":"0.00"}}]
[]
[null,null,"Test blocks:"]
[]
[null,{"v":14,"d":"14 "},"Making and testing 150 x 150 x 150mm concrete strength test cube (Provisional)","No",{"v":2,"d":"2 "},null,{"$f":"ROUND(E1165*F1165,2)","v":{"v":0,"d":"0.00"}}]
[]
[null,null,"Rough formwork to:"]
[]
[null,{"v":15,"d":"15 "},"Edges, risers, ends and reveals not exceeding 300mm high or wide","m",{"v":30,"d":"30 "},null,{"$f":"ROUND(E1169*F1169,2)","v":{"v":0,"d":"0.00"}}]
[]
[null,null,"Smooth formwork to:"]
[]
[null,{"v":16,"d":"16 "},"Soffits of slab","m²",{"v":5,"d":"5 "},null,{"$f":"ROUND(E1173*F1173,2)","v":{"v":0,"d":"0.00"}}]
[]
[null,null,"Sundries:"]
[]
[null,{"v":17,"d":"17 "},"Box in and form opening size 450 x 650mm throuhg 100mm thick slab for manhole cover and frame","No",{"v":5,"d":"5 "},null,{"$f":"ROUND(E1177*F1177,2)","v":{"v":0,"d":"0.00"}}]
[]
[null,null,"Box in and form opening size 450 x 650mm throuhg 100mm thick slab for manhole cover and frame"]
[]
[null,{"v":18,"d":"18 "},"Type 193 fabric reinforcement in concrete slabs etc","m²",{"v":5,"d":"5 "},null,{"$f":"ROUND(E1181*F1181,2)","v":{"v":0,"d":"0.00"}}]
[]
[null,{"v":19,"d":"19 "},"Type 395 fabric reinforcement in concrete slabs etc","m²",{"v":5,"d":"5 "},null,{"$f":"ROUND(E1183*F1183,2)","v":{"v":0,"d":"0.00"}}]
[]
[null,null,"Brickwork of NFX bricks (14 MPa nominal compressive strength) in class 1 mortar:"]
[]
[null,{"v":20,"d":"20 "},"Half brick walls","m²",{"v":100,"d":"100 "},null,{"$f":"ROUND(E1187*F1187,2)","v":{"v":0,"d":"0.00"}}]
[]
[null,{"v":21,"d":"21 "},"One brick wall","m²",{"v":85,"d":"85 "},null,{"$f":"ROUND(E1189*F1189,2)","v":{"v":0,"d":"0.00"}}]
[]
[null,null,"Brickwork reinforcement:"]
[]
[null,{"v":22,"d":"22 "},"75mm Wide reinforcement built in horizontally","m",{"v":65,"d":"65 "},null,{"$f":"ROUND(E1193*F1193,2)","v":{"v":0,"d":"0.00"}}]
[]
[null,{"v":23,"d":"23 "},"150mm Wide reinforcement built in horizontally","m",{"v":65,"d":"65 "},null,{"$f":"ROUND(E1195*F1195,2)","v":{"v":0,"d":"0.00"}}]
[]
[null,null,"Brickwork sundries:"]
[]
[null,{"v":24,"d":"24 "},"Leave of form 150 x 150mm high opening through a half brick wall","No",{"v":6,"d":"6 "},null,{"$f":"ROUND(E1199*F1199,2)","v":{"v":0,"d":"0.00"}}]
[]
[null,null,"Watertight cement plaster on brickwork:"]
[]
[null,{"v":25,"d":"25 "},"On walls","m²",{"v":40,"d":"40 "},null,{"$f":"ROUND(E1203*F1203,2)","v":{"v":0,"d":"0.00"}}]
[]
[null,null,"Plumbing and drainage:"]
[]
[null,{"v":26,"d":"26 "},"Standard cast iron type seal manhole cover and frame opening size 450 x 650mm x 74Kg, bedded in 3:1 cement mortar.","No",{"v":5,"d":"5 "},null,{"$f":"ROUND(E1207*F1207,2)","v":{"v":0,"d":"0.00"}}]
[]
[null,{"v":27,"d":"27 "},"110mm uPVC pipe","m",{"v":20,"d":"20 "},null,{"$f":"ROUND(E1209*F1209,2)","v":{"v":0,"d":"0.00"}}]
[]
[null,null,"Extra over uPVC pipes for fittings"]
[]
[null,{"v":28,"d":"28 "},"Extra over pipe for tee junction","No",{"v":6,"d":"6 "},null,{"$f":"ROUND(E1213*F1213,2)","v":{"v":0,"d":"0.00"}}]
[]
[null,null,"REINFORCEMENT"]
[]
[null,{"v":29,"d":"29 "},"Reinforcement bars in between brickwork.","t",{"v":1,"d":"1.00"},null,{"$f":"ROUND(E1217*F1217,2)","v":{"v":0,"d":"0.00"}}]
[]
[null,null,"EXTERNAL WORKS"]
[]
[null,null,"Concrete Apron with channel:"]
[]
[null,{"v":30,"d":"30 "},"Concrete V- drain 600mm wide x 130mm high with mesh ref. 193 including boxing in to form V- cut. .","m",{"v":208,"d":"208 "},null,{"$f":"ROUND(E1223*F1223,2)","v":{"v":0,"d":"0.00"}}]
[]
[null,null,"WALK WAYS."]
[]
[null,null,"Concrete walk ways"]
[]
[null,{"v":31,"d":"31 "},"Paving in walkways.","m²",{"v":46,"d":"46 "},null,{"$f":"ROUND(E1229*F1229,2)","v":{"v":0,"d":"0.00"}}]
[]
[null,null,"LANDSCAPING"]
[]
[null,null,"Grassing"]
[]
[null,{"v":32,"d":"32 "},"Load, cart and spread topsoil, 100mm thick from suitable source on site","m²",{"v":400,"d":"400 "},null,{"$f":"ROUND(E1235*F1235,2)","v":{"v":0,"d":"0.00"}}]
[]
[null,{"v":33,"d":"33 "},"Cynodin Instant lawn sods, incl. all necessary preparation, fertilizers,  compost and watering","m²",{"v":400,"d":"400 "},null,{"$f":"ROUND(E1237*F1237,2)","v":{"v":0,"d":"0.00"}}]
[]
[null,{"v":34,"d":"34 "},"Maintenance of areas seeded with indigenous grass or otherwise planted including regular weeding and irrigating as necessary during a period of three months","m²",{"v":400,"d":"400 "},null,{"$f":"ROUND(E1239*F1239,2)","v":{"v":0,"d":"0.00"}}]
[]
[null,null,"FENCING"]
[]
[null,{"v":35,"d":"35 "},"Clear visibility high security perimeter fencing enhancing any facility or home fence 1.8m High as per architech specification.","m",{"v":517,"d":"517 "},null,{"$f":"ROUND(E1243*F1243,2)","v":{"v":0,"d":"0.00"}}]
[]
[null,{"v":36,"d":"36 "},"4m x 4m Car gate deep galvanised to architect specification.","No",{"v":1,"d":"1 "},null,{"$f":"ROUND(E1245*F1245,2)","v":{"v":0,"d":"0.00"}}]
[]
[null,null,"Gates"]
[]
[null,{"v":37,"d":"37 "},"Pedestrian gates size 1500mm x 1800mm, high formed of 50mm diameter x 2.8mm thick pipe framing all round complete with one 50mm diameter x 2.8mm thick pipe diagonal brace all neatly mitred and welded at intersections, the gate with 4 strands of straining wires each strand formed of twisted doubles strand 1,6mmthick wires incorporating 3 barbs in every twist at 150mm centres mechanically strained between and securely fixed to gate stiles complete with and including three rows of flat wrap razor securely wire in 160mm diameter vertical loops fixed at each intersection with barbed straining wires with and including stainless steel heavy duty clips, infill to gate formed of 50 x 50 x 2.5mm diameter Class A fully galvanised fencing mesh \"cliplock\"fixed to barbed straining wires. The one stile fitted with and including two gate bracketc with pin and collar hinges bolted onto steel gate and other stile with purpose made locking device and hand-holed opening formed of 10mm diameter bar 320mm girth bent to semi-circular shape and welded on all as shown on the fencing drawing.","No",{"v":1,"d":"1 "},null,{"$f":"ROUND(E1249*F1249,2)","v":{"v":0,"d":"0.00"}}]
[]
[null,null,"RECREATIONAL FACILITIES"]
[]
[null,null,"JUNGLE GYM"]
[]
[null,null,"The equipment should arrive on site predrilled. Timber should be cleaned and trimmed. Knots should be removed on poles. No protruding nails. Ends should be painted in bright coloured non toxic paint that is weather proof. Poles are to be wood guard protected. Timber to be treated according to the CCA standards for pest and insects infestation."]
[]
[null,{"v":38,"d":"38 "},"Supply and fix complete jungle gym 6.9m x 7.5m diameter comprising the following:  Platform; Roof; Slide; Ladder; Pull up Ladder; Bridge; Monkey Bars; Rope Ladder; Tyre Climber and Combo Net.  Platform Solid platform 1.8m long x 1.8m wide must have a floor and safety rails.  Slide Bright coloured slide 2.4m long, made of heavy duty fibre glass with deepened sides reinforced in the middle.  Pull up Ladder/ Ladder The flat panks should be 900mm wide; side logs to be 1.8m long; knotted 12mm thick polysteel rope; nails and ring tanks to be used.  Bridge Must be solid rumble bridge 2.4m x 2.4m and made up of half round poles and must be 600mm width.  Monkey Bars 2.4m long x 2.4m wide x 900mm ladder made of galvanized steel and assembled with threades, nuts and washers.  Rope Ladder 1.8m long, 56mm width with poles that are 50-75mm diameter; 12mm thick polysteel rope.  Tyre Climber 4 car tyres; 3m x 3m poles, poles to be dug into the ground with concrete bases.  Combo Net 1.8m width x 2.1m length, polysteel rope (12mm) thick must be on frame.  Swings Free standing two seater swing. The free standing swing is preferred to avoid congestion in one area.  Free Standing Swing 4 poles x 3m al least (100mm - 125mm) diameter; 1 pole x 2.4m; 12m polysteelrope; 2 x rubber seats; 1m thread bar; 8 x nuts and washers. To be dug into the ground using concrete.","Item",{"v":1,"d":"1 "},null,{"$f":"ROUND(E1257*F1257,2)","v":{"v":0,"d":"0.00"}}]
[]
[null,{"v":39,"d":"39 "},"Allow for profit and attandance to nominated or direct sub-contractors","Item",{"v":1,"d":"1 "},null,{"$f":"ROUND(E1259*F1259,2)","v":{"v":0,"d":"0.00"}}]
{"$rows_empty":7}
[null,null,"SUMMARY PAGE FOR CEKAZI"]
[]
[null,{"v":1,"d":"1 "},"PRELIMINARIES","Page",null,{"$f":"G10","v":{"v":0,"d":"0.00"}}]
[]
[null,{"v":2,"d":"2 "},"ALTERATIONS","Page",null,{"$f":"G212","v":{"v":0,"d":"0.00"}}]
[]
[null,{"v":3,"d":"3 "},"FOUNDATIONS.","Page",null,{"$f":"G338","v":{"v":0,"d":"0.00"}}]
[]
[null,{"v":4,"d":"4 "},"MASONRY","Page",null,{"$f":"G458","v":{"v":0,"d":"0.00"}}]
[]
[null,{"v":5,"d":"5 "},"FLOOR COVERINGS","Page",null,{"$f":"G526","v":{"v":0,"d":"0.00"}}]
[]
[null,{"v":6,"d":"6 "},"ROOF COVERINGS, ETC.","Page",null,{"$f":"G538","v":{"v":0,"d":"0.00"}}]
[]
[null,{"v":7,"d":"7 "},"CEILINGS, PARTITIONS AND ACCESS FLOORING","Page",null,{"$f":"G582","v":{"v":0,"d":"0.00"}}]
[]
[null,{"v":8,"d":"8 "},"CARPENTRY AND JOINERY","Page",null,{"$f":"G602","v":{"v":0,"d":"0.00"}}]
[]
[null,{"v":9,"d":"9 "},"RAINWATER GOODS.","Page",null,{"$f":"G698","v":{"v":0,"d":"0.00"}}]
[]
[null,{"v":10,"d":"10 "},"PAINTWORK","Page",null,{"$f":"G720","v":{"v":0,"d":"0.00"}}]
[]
[null,{"v":11,"d":"11 "},"IRONMONGERY","Page",null,{"$f":"G758","v":{"v":0,"d":"0.00"}}]
[]
[null,{"v":12,"d":"12 "},"METAL","Page",null,{"$f":"G818","v":{"v":0,"d":"0.00"}}]
[]
[null,{"v":13,"d":"13 "},"PLASTERING","Page",null,{"$f":"G866","v":{"v":0,"d":"0.00"}}]
[]
[null,{"v":14,"d":"14 "},"PLUMBING AND DRAINAGE","Page",null,{"$f":"G888","v":{"v":0,"d":"0.00"}}]
[]
[null,{"v":15,"d":"15 "},"GLAZING","Page",null,{"$f":"G1036","v":{"v":0,"d":"0.00"}}]
[]
[null,{"v":16,"d":"16 "},"PROVISIONAL SUM","Page",null,{"$f":"G1052","v":{"v":724625,"d":"724,625.00"}}]
[]
[null,{"v":17,"d":"17 "},"EXTERNAL WORKS","Page",null,{"$f":"G1111","v":{"v":0,"d":"0.00"}}]
[]
[null,null,"SUB-TOTAL",null,null,{"$f":"SUM(F1268:F1302)","v":{"v":724625,"d":"724,625.00"}}]
[]
[null,null,"Contingencies 5%","TAX",null,{"$f":"F1303*5%","v":{"v":36231.25,"d":"36,231.25"}}]
[]
[null,null,"SUB TOTAL","ST",null,{"$f":"SUM(F1303:F1306)","v":{"v":760856.25,"d":"760,856.25"}}]
[]
[null,null,"VAT 15%","TAX",null,{"$f":"F1307*15%","v":{"v":114128.4375,"d":"114,128.44"}}]
[]
[null,null,"SUB TOTAL ","ST",null,{"$f":"SUM(F1307:F1310)","v":{"v":874984.6875,"d":"874,984.69"}}]